Workbook

Sheet Instructions
B2: Durabilty Design Notes:
C4: Many options are eliminated when abrasion level equals 4 or greater
C5: Aluminum is only available between pH levels ranging from 5.0 to less than 9.0
C6: Aluminized protective coating is 0 years when pH levels are outside of allowable for Aluminum
C7: Polymeric coated is only available for pH ranges greater than 5.0 and less than 9.0
C8: Options were emiminated when the NCSPA online Service Life Calculator did not recommend option; typically due to abrasive conditions or pH limitations
C9: Epoxy is required on all concrete surfaces when pH<5
C10: Provide concrete field paving on corrugated metal conduits 60” or larger where the invert is always submerged due to tail water conditions from a body of water
C11: Designer is responsible to ensure the required gage thickness is available for the given pipe size
C12: Concrete Invert paving is available at 60" span/rise or larger
B15: User Instructions: | C15: Provide at least one pipe material option from metal pipe, concrete pipe, and plastic pipe when feasible
C16: Provide a maximum of 3 options per material in the plans. Metal pipe has many options. Relative material cost increases from left to right and top to bottom in the durability design tab. Contact material vendor as required to verify relative cost.
C17: Cells in yellow require user input. Three inputs are required: Conduit Type, Stream pH, & Abrasion Level
C18: A pop-up box will appear with additional instructions when an input is selected
C19: See the 'Reference Data' tab for Abrasion Level descriptions and photos
C20: For Storm Sewers: assume abrasion level =1 and pH=7. Designer may modify as site conditions require.
C21: For Culverts: Use field collected pH; and stream abrasion level according to section 1002.2.2 in L&D, Vol. 2
C22: Cells that appear in light blue are the minimum gauge or thickness (inches) permitted by ODOT Specifications
C23: Cells that appear in blue are the maximum gauge or thickness (inches) commercially available for a given conduit size. Do not specify a conduit exceeding the maximum gauge or thickness commercially available.
C24: Cells that appear in green meet service life requirements, however available gauge needs to be verified.
C25: Use the highest gauge/lowest thickness that is an available option shown in a green cell that is at least the minimum gauge thickness permitted by ODOT specifications and does not exceed the maximum commercially available
C26: Cells that appear in red do not meet service life requirements or are not commercially available options

Sheet Durability Design
B2: See Instructions on Tab 1
B3: County | C3: Columbiana | E3: Route | F3: 644 | G3: Section | H3: 7.96 | I3: PID | J3: 118153 | K3: Shape | L3: Circular
B4: Station | C4: 422+43.07 | E4: Station | F4: 422+52.73 | K4: Span x Rise | L4: 30
K5: =IF(L3="Elliptical","Span and Rise not Required for Elliptical Shape",IF(L3="Box","Contact Manufacturer for Span and Rise for Metal Box if specified.","")) -> 
C6: User Input | F6: Constants and Calculated Values
C7: pHw | D7: Abrasion Level | F7: pHs | G7: Sediment/Rise | H7: End of Service Life GA | I7: Service Life Required
C8: 6.5 | D8: 4 | F8: 7.6 | G8: 0 | H8: 4 | I8: 75
B10: Metal Conduit Durability Results
B11: Material | D11: 707.01 , 707.02, or 707.03 Metallic coated (galvanized) | E11: =IF($C$8>=6, "707.01 or 707.02 or 707.03 Metallic coated (galvanized) with Concrete Field Paving", IF( $C$8>=5,"707.01 or 707.02 or 707.03 Metallic coated (galvanized) with External Coating per AASHTO M243 and Concrete Field Paving","707.01 or 707.02 or 707.03 Metallic coated (galvanized) with External Coating per AASHTO M243 and Concrete Field Paving with Epoxy per 706.03")) -> 707.01 or 707.02 or 707.03 Metallic coated (galvanized) with Concrete Field Paving | F11: 707.01 or 707.02 Metallic coated (Aluminized) | G11: =IF($C$8>=6, "***707.01 or 707.02 Metallic coated (aluminized) with Concrete Field Paving", IF( $C$8>=5,"***707.01 or 707.02 Metallic coated (aluminized) with External Coating per AASHTO M243 and Concrete Field Paving","***707.01 or 707.02 Metallic coated (aluminized) with External Coating per AASHTO M243 and Concrete Field Paving with Epoxy per 706.03")) -> ***707.01 or 707.02 Metallic coated (aluminized) with Concrete Field Paving | H11: 707.04 Polymeric Coated over galvanized steel | I11: =IF($C$8>=5, "***707.04 Polymeric Coated with Concrete Field Paving", "***707.04 Polymeric Coated with Epoxy Coated (per 706.03) Concrete Field Paving") -> ***707.04 Polymeric Coated with Concrete Field Paving | J11: 707.05 or 707.07 (707.01 or 707.02 galvanized) 1/2 Bituminous coated with Bituminous paved invert | K11: ***707.05 or 707.07 (707.01 or 707.02 aluminized) 1/2 Bituminous coated with Bituminous paved invert | L11: **707.11 Polymer Precoated spiral rib steel | M11: **707.12 or 707.17 Aluminum coated spiral rib steel | N11: 707.13 or 707.14 (707.01 or 707.02 galvanized) Bituminous lined galvanized steel | O11: 707.13 or 707.14 (707.01 or 707.02 aluminized) Bituminous lined aluminized steel | P11: 707.15 Galvanized steel box | Q11: **707.18 Polymer Precoated, Galvanized Steel Conduits with precoated galvanized smooth steel interior liner | R11: **707.19 Aluminum coated Steel Conduits with precoated galvanized smooth steel interior liner | S11: **707.20 Galvanized Coated Steel Conduits with precoated galvanized smooth steel interior liner | T11: **748.06 Steel Casing Pipe non-galvanized | U11: 707.21 or 707.22 Aluminum | V11: 707.23 Aluminum Structural Plate | W11: 707.24 Aluminum Spiral Rib | X11: 707.25 Aluminum Box | Y11: =IF($C$8>=5,"707.21, 707.22, or 707.23 Aluminum Alloy or Aluminum Alloy Structural Plate with Concrete Invert Paving","707.21, 707.22, or 707.23 Aluminum Alloy or Aluminum Alloy Structural Plate with Concrete Invert Paving with Epoxy Coated (per 706.03) Concrete Invert Paving") -> 707.21, 707.22, or 707.23 Aluminum Alloy or Aluminum Alloy Structural Plate with Concrete Invert Paving
B12: Conduit Use and Shape | D12: Culvert or Liner Pipe -Round or Pipe Arch | E12: Culvert-Round, Pipe Arch, and Arch | F12: Culvert or Liner Pipe -Round or Pipe Arch | G12: Culvert -Round or Pipe Arch | H12: Culvert or Liner Pipe -Round or Pipe Arch | I12: Culvert-Round or Pipe Arch | J12: Culvert -Round or Pipe Arch | K12: Culvert -Round or Pipe Arch | L12: Storm Sewer or Liner Pipe- Round | M12: Liner Pipe- Round or Pipe Arch | N12: Storm Sewer - Round or Pipe Arch | O12: Storm Sewer -Round or Pipe Arch | P12: Culvert -Box | Q12: Liner Pipe -Round | R12: Liner Pipe -Round | S12: Liner Pipe - Round | T12: Culvert or Liner Pipe-Round, Pipe Arch, or Box | U12: Culvert or Liner Pipe-Round or Pipe Arch | V12: Culvert or Liner Pipe -Round, Pipe Arch, and Arch | W12: Storm Sewer or Liner Pipe -Round | X12: Culvert -Box | Y12: Culvert - Round or Pipe Arch
C13: Corr. Depth (inches)
B14: min gauge or thickness | C14: 1/4 or 1/2 | D14: =IF(OR($L$3="Box",$L$3="Elliptical"),"N/A",IF($L$3="Circular",IF($L$4<=84,VLOOKUP($L$4,Round_Half_Corrugations,6),"N/A"),IF(VLOOKUP($L$4,all_pipe_arch,2,FALSE)="1/4 or 1/2",VLOOKUP($L$4,Pipe_Arch_Half_Corrugations,5),"N/A"))) -> 16 | E14: 16 | F14: 16 | G14: 16 | H14: 16 | I14: 16 | J14: 16 | K14: 16 | L14: N/A | M14: N/A | N14: =IF(OR($L$3="Box",$L$3="Elliptical"),"N/A",IF($L$3="Circular",IF($L$4<=84,VLOOKUP($L$4,Round_Half_Corrugations,6),"N/A"),IF(VLOOKUP($L$4,all_pipe_arch,2,FALSE)="1/4 or 1/2",VLOOKUP($L$4,Pipe_Arch_Half_Corrugations,5),"N/A"))) -> 16 | O14: =IF(OR($L$3="Box",$L$3="Elliptical"),"N/A",IF($L$3="Circular",IF($L$4<=84,VLOOKUP($L$4,Round_Half_Corrugations,6),"N/A"),IF(VLOOKUP($L$4,all_pipe_arch,2,FALSE)="1/4 or 1/2",VLOOKUP($L$4,Pipe_Arch_Half_Corrugations,5),"N/A"))) -> 16 | P14: N/A | Q14: =IF(OR($L$3="Box",$L$3="Elliptical",$L$3="Pipe Arch",$L$4>90,$L$4<18,$L$4=27),"N/A",IF($L$3="Circular",VLOOKUP($L$4,Spiral_Rib_Pipe,6,FALSE))) -> 16 | R14: =IF(OR($L$3="Box",$L$3="Elliptical",$L$3="Pipe Arch",$L$4>90,$L$4<18,$L$4=27),"N/A",IF($L$3="Circular",VLOOKUP($L$4,Spiral_Rib_Pipe,6,FALSE))) -> 16 | S14: =IF(OR($L$3="Box",$L$3="Elliptical",$L$3="Pipe Arch",$L$4>90,$L$4<18,$L$4=27),"N/A",IF($L$3="Circular",VLOOKUP($L$4,Spiral_Rib_Pipe,6,FALSE))) -> 16 | T14: 0.5 | U14: =IF(OR($L$3="Box",$L$3="Elliptical"),"N/A",IF($L$3="Circular",IF($L$4<=72,VLOOKUP($L$4,Aluminum_Half_Corrugations,3),"N/A"),IF(VLOOKUP($L$4,all_pipe_arch,5,FALSE)=" 1/2",VLOOKUP($L$4,Aluminum_Pipe_Arch_Half_Corrugations,3),"N/A"))) -> 14 | V14: N/A | W14: N/A | X14: N/A | Y14: =IF(OR($L$3="Box",$L$3="Elliptical"),"N/A",IF($L$3="Circular",IF($L$4<=72,VLOOKUP($L$4,Aluminum_Half_Corrugations,3),"N/A"),IF(VLOOKUP($L$4,all_pipe_arch,5,FALSE)=" 1/2",VLOOKUP($L$4,Aluminum_Pipe_Arch_Half_Corrugations,3),"N/A"))) -> 14
C15: 1 | D15: =IF(OR($L$3="Box",$L$3="Elliptical"),"N/A",IF($L$3="Circular",IF(AND($L$4>=36,$L$4<=120),VLOOKUP($L$4,Round_Inch_Corrugations,6),"N/A"),IF((VLOOKUP($L$4,all_pipe_arch,3,FALSE)=1),VLOOKUP($L$4,Pipe_Arch_Inch_Corrugations,6,FALSE),"N/A"))) -> N/A | E15: =IF(OR($L$3="Box",$L$3="Elliptical"),"N/A",IF($L$3="Circular",IF(AND($L$4>=36,$L$4<=120),VLOOKUP($L$4,Round_Inch_Corrugations,6),"N/A"),IF((VLOOKUP($L$4,all_pipe_arch,3,FALSE)=1),VLOOKUP($L$4,Pipe_Arch_Inch_Corrugations,6,FALSE),"N/A"))) -> N/A | F15: =IF(OR($L$3="Box",$L$3="Elliptical"),"N/A",IF($L$3="Circular",IF(AND($L$4>=36,$L$4<=120),VLOOKUP($L$4,Round_Inch_Corrugations,6),"N/A"),IF(VLOOKUP($L$4,all_pipe_arch,3,FALSE)=1,VLOOKUP($L$4,Pipe_Arch_Inch_Corrugations,5,FALSE),"N/A"))) -> N/A | G15: =IF(OR($L$3="Box",$L$3="Elliptical"),"N/A",IF($L$3="Circular",IF(AND($L$4>=36,$L$4<=120),VLOOKUP($L$4,Round_Inch_Corrugations,6),"N/A"),IF(VLOOKUP($L$4,all_pipe_arch,3,FALSE)=1,VLOOKUP($L$4,Pipe_Arch_Inch_Corrugations,5,FALSE),"N/A"))) -> N/A | H15: =IF(OR($L$3="Box",$L$3="Elliptical"),"N/A",IF($L$3="Circular",IF(AND($L$4>=36,$L$4<=120),VLOOKUP($L$4,Round_Inch_Corrugations,6),"N/A"),IF(VLOOKUP($L$4,all_pipe_arch,3,FALSE)=1,VLOOKUP($L$4,Pipe_Arch_Inch_Corrugations,5,FALSE),"N/A"))) -> N/A | I15: =IF(OR($L$3="Box",$L$3="Elliptical"),"N/A",IF($L$3="Circular",IF(AND($L$4>=36,$L$4<=120),VLOOKUP($L$4,Round_Inch_Corrugations,6),"N/A"),IF(VLOOKUP($L$4,all_pipe_arch,3,FALSE)=1,VLOOKUP($L$4,Pipe_Arch_Inch_Corrugations,5,FALSE),"N/A"))) -> N/A | J15: =IF(OR($L$3="Box",$L$3="Elliptical"),"N/A",IF($L$3="Circular",IF(AND($L$4>=36,$L$4<=120),VLOOKUP($L$4,Round_Inch_Corrugations,6),"N/A"),IF((VLOOKUP($L$4,all_pipe_arch,3,FALSE)=1),VLOOKUP($L$4,Pipe_Arch_Inch_Corrugations,6,FALSE),"N/A"))) -> N/A | K15: =IF(OR($L$3="Box",$L$3="Elliptical"),"N/A",IF($L$3="Circular",IF(AND($L$4>=36,$L$4<=120),VLOOKUP($L$4,Round_Inch_Corrugations,6),"N/A"),IF(VLOOKUP($L$4,all_pipe_arch,3,FALSE)=1,VLOOKUP($L$4,Pipe_Arch_Inch_Corrugations,5,FALSE),"N/A"))) -> N/A | L15: N/A | M15: N/A | N15: =IF(OR($L$3="Box",$L$3="Elliptical"),"N/A",IF($L$3="Circular",IF(AND($L$4>=36,$L$4<=120),VLOOKUP($L$4,Round_Inch_Corrugations,6),"N/A"),IF(VLOOKUP($L$4,all_pipe_arch,3,FALSE)=1,VLOOKUP($L$4,Pipe_Arch_Inch_Corrugations,5,FALSE),"N/A"))) -> N/A | O15: =IF(OR($L$3="Box",$L$3="Elliptical"),"N/A",IF($L$3="Circular",IF(AND($L$4>=36,$L$4<=120),VLOOKUP($L$4,Round_Inch_Corrugations,6),"N/A"),IF(VLOOKUP($L$4,all_pipe_arch,3,FALSE)=1,VLOOKUP($L$4,Pipe_Arch_Inch_Corrugations,5,FALSE),"N/A"))) -> N/A | P15: N/A | Q15: N/A | R15: N/A | S15: N/A | U15: =IF(OR($L$3="Box",$L$3="Elliptical"),"N/A",IF($L$3="Circular",IF(AND($L$4>=36,$L$4<=120),VLOOKUP($L$4,Aluminum_Inch_Corrugations,3),"N/A"),IF((VLOOKUP($L$4,all_pipe_arch,6,FALSE)=1),VLOOKUP($L$4,Aluminum_Pipe_Arch_Inch_Corrugations,3,FALSE),"N/A"))) -> N/A | V15: N/A | W15: N/A | X15: N/A | Y15: =IF(OR($L$3="Box",$L$3="Elliptical"),"N/A",IF($L$3="Circular",IF(AND($L$4>=36,$L$4<=120),VLOOKUP($L$4,Aluminum_Inch_Corrugations,3),"N/A"),IF((VLOOKUP($L$4,all_pipe_arch,6,FALSE)=1),VLOOKUP($L$4,Aluminum_Pipe_Arch_Inch_Corrugations,3,FALSE),"N/A"))) -> N/A
C16: 2 | D16: =IF(OR($L$3="Box",$L$3="Elliptical"),"N/A",IF($L$3="Circular",IF($L$4<60,"N/A",VLOOKUP($L$4,Round_Plate,6)),IF(VLOOKUP($L$4,all_pipe_arch,4,FALSE)=2,1,"N/A"))) -> N/A | E16: =IF(OR($L$3="Box",$L$3="Elliptical"),"N/A",IF($L$3="Circular",IF($L$4<60,"N/A",VLOOKUP($L$4,Round_Plate,6)),IF(VLOOKUP($L$4,all_pipe_arch,4,FALSE)=2,1,"N/A"))) -> N/A | F16: N/A | G16: N/A | H16: N/A | I16: N/A | J16: =IF(OR($L$3="Box",$L$3="Elliptical"),"N/A",IF($L$3="Circular",IF($L$4<60,"N/A",VLOOKUP($L$4,Round_Plate,6)),IF(VLOOKUP($L$4,all_pipe_arch,4,FALSE)=2,1,"N/A"))) -> N/A | K16: N/A | L16: N/A | M16: N/A | N16: N/A | O16: N/A | P16: =IF($L$3="Box",IF(OR($P$25>=75,$P$26>=75,$P$27>=75,$P$28>=75,$P$29>=75,$P$30>=75,$P$31>=75,$P$32>=75,$P$33>=75),12,"N/A"),"N/A") -> N/A | Q16: N/A | R16: N/A | S16: N/A | U16: N/A | V16: =IF(OR($L$3="Box",$L$3="Elliptical"),"N/A",IF($L$3="Circular",IF(OR($L$4<60,$L$4>228),"N/A",VLOOKUP($L$4,Aluminum_Circular_Plate,6)),IF((VLOOKUP($L$4,all_pipe_arch,7,FALSE)=2),VLOOKUP($L$4,Aluminum_Pipe_Arch_Plate,6),"N/A"))) -> N/A | W16: N/A | X16: =IF($L$3="Box",IF(OR($P$25>=75,$P$26>=75,$P$27>=75,$P$28>=75,$P$29>=75,$P$30>=75,$P$31>=75,$P$32>=75,$P$33>=75),0.1,"N/A"),"N/A") -> N/A | Y16: =IF(OR($L$3="Box",$L$3="Elliptical"),"N/A",IF($L$3="Circular",IF(OR($L$4<60,$L$4>228),"N/A",VLOOKUP($L$4,Aluminum_Circular_Plate,6)),IF((VLOOKUP($L$4,all_pipe_arch,7,FALSE)=2),VLOOKUP($L$4,Aluminum_Pipe_Arch_Plate,6),"N/A"))) -> N/A
C17: 3/4 | D17: N/A | E17: N/A | F17: N/A | G17: N/A | H17: N/A | I17: N/A | J17: N/A | K17: N/A | L17: =IF(OR($L$3="Box",$L$3="Elliptical",$L$3="Pipe Arch",$L$4>90,$L$4<18,$L$4=27),"N/A",IF($L$3="Circular",VLOOKUP($L$4,Spiral_Rib_Pipe,6,FALSE))) -> 16 | M17: =IFERROR((IF(OR($L$3="Box",$L$3="Elliptical"),"N/A",IF($L$3="Circular",VLOOKUP($L$4,Spiral_Rib_Pipe,6,FALSE),IF(VLOOKUP($L$4,all_pipe_arch,8,FALSE)="1/4 ",VLOOKUP($L$4,Spiral_Rib_Pipe_Arch,6),"N/A")))),"N/A") -> 16 | N17: N/A | O17: N/A | P17: N/A | Q17: N/A | R17: N/A | S17: N/A | U17: N/A | V17: N/A | W17: =IF(OR($L$3="Box",$L$3="Elliptical",$L$3="Pipe Arch",$L$4<18,$L$4>66),"N/A",VLOOKUP($L$4,Aluminum_Circular_Spiral_Rib,6)) -> 16 | X17: N/A | Y17: N/A
B19: max gauge or thickness | C19: 1/4 or 1/2 | D19: =IF(OR($L$3="Box",$L$3="Elliptical"),"N/A",IF($L$3="Circular",IF($L$4<=84,VLOOKUP($L$4,Round_Half_Corrugations,7),"N/A"),IF(VLOOKUP($L$4,all_pipe_arch,2,FALSE)="1/4 or 1/2",VLOOKUP($L$4,Pipe_Arch_Half_Corrugations,6),"N/A"))) -> 12 | E19: =IF(OR($L$3="Box",$L$3="Elliptical"),"N/A",IF($L$3="Circular",IF($L$4<=84,VLOOKUP($L$4,Round_Half_Corrugations,7),"N/A"),IF(VLOOKUP($L$4,all_pipe_arch,2,FALSE)="1/4 or 1/2",VLOOKUP($L$4,Pipe_Arch_Half_Corrugations,6),"N/A"))) -> 12 | F19: =IF(OR($L$3="Box",$L$3="Elliptical"),"N/A",IF($L$3="Circular",IF($L$4<=84,VLOOKUP($L$4,Round_Half_Corrugations,8),"N/A"),IF(VLOOKUP($L$4,all_pipe_arch,2,FALSE)="1/4 or 1/2",VLOOKUP($L$4,Pipe_Arch_Half_Corrugations,7),"N/A"))) -> 12 | G19: =IF(OR($L$3="Box",$L$3="Elliptical"),"N/A",IF($L$3="Circular",IF($L$4<=84,VLOOKUP($L$4,Round_Half_Corrugations,8),"N/A"),IF(VLOOKUP($L$4,all_pipe_arch,2,FALSE)="1/4 or 1/2",VLOOKUP($L$4,Pipe_Arch_Half_Corrugations,7),"N/A"))) -> 12 | H19: =IF(OR($L$3="Box",$L$3="Elliptical"),"N/A",IF($L$3="Circular",IF($L$4<=84,VLOOKUP($L$4,Round_Half_Corrugations,9),"N/A"),IF(VLOOKUP($L$4,all_pipe_arch,2,FALSE)="1/4 or 1/2",VLOOKUP($L$4,Pipe_Arch_Half_Corrugations,8),"N/A"))) -> 12 | I19: =IF(OR($L$3="Box",$L$3="Elliptical"),"N/A",IF($L$3="Circular",IF($L$4<=84,VLOOKUP($L$4,Round_Half_Corrugations,9),"N/A"),IF(VLOOKUP($L$4,all_pipe_arch,2,FALSE)="1/4 or 1/2",VLOOKUP($L$4,Pipe_Arch_Half_Corrugations,8),"N/A"))) -> 12 | J19: =IF(OR($L$3="Box",$L$3="Elliptical"),"N/A",IF($L$3="Circular",IF($L$4<=84,VLOOKUP($L$4,Round_Half_Corrugations,7),"N/A"),IF(VLOOKUP($L$4,all_pipe_arch,2,FALSE)="1/4 or 1/2",VLOOKUP($L$4,Pipe_Arch_Half_Corrugations,6),"N/A"))) -> 12 | K19: =IF(OR($L$3="Box",$L$3="Elliptical"),"N/A",IF($L$3="Circular",IF($L$4<=84,VLOOKUP($L$4,Round_Half_Corrugations,8),"N/A"),IF(VLOOKUP($L$4,all_pipe_arch,2,FALSE)="1/4 or 1/2",VLOOKUP($L$4,Pipe_Arch_Half_Corrugations,7),"N/A"))) -> 12 | L19: N/A | M19: N/A | N19: =IF(OR($L$3="Box",$L$3="Elliptical"),"N/A",IF($L$3="Circular",IF($L$4<=84,VLOOKUP($L$4,Round_Half_Corrugations,7),"N/A"),IF(VLOOKUP($L$4,all_pipe_arch,2,FALSE)="1/4 or 1/2",VLOOKUP($L$4,Pipe_Arch_Half_Corrugations,6),"N/A"))) -> 12 | O19: =IF(OR($L$3="Box",$L$3="Elliptical"),"N/A",IF($L$3="Circular",IF($L$4<=84,VLOOKUP($L$4,Round_Half_Corrugations,8),"N/A"),IF(VLOOKUP($L$4,all_pipe_arch,2,FALSE)="1/4 or 1/2",VLOOKUP($L$4,Pipe_Arch_Half_Corrugations,7),"N/A"))) -> 12 | P19: N/A | Q19: =IF(OR($L$3="Box",$L$3="Elliptical",$L$3="Pipe Arch",$L$4>90,$L$4<18,$L$4=27),"N/A",IF($L$3="Circular",VLOOKUP($L$4,Spiral_Rib_Pipe,9,FALSE))) -> 12 | R19: =IF(OR($L$3="Box",$L$3="Elliptical",$L$3="Pipe Arch",$L$4>90,$L$4<18,$L$4=27),"N/A",IF($L$3="Circular",VLOOKUP($L$4,Spiral_Rib_Pipe,9,FALSE))) -> 12 | S19: =IF(OR($L$3="Box",$L$3="Elliptical",$L$3="Pipe Arch",$L$4>90,$L$4<18,$L$4=27),"N/A",IF($L$3="Circular",VLOOKUP($L$4,Spiral_Rib_Pipe,9,FALSE))) -> 12 | T19: 0.5 | U19: =IF(OR($L$3="Box",$L$3="Elliptical"),"N/A",IF($L$3="Circular",IF($L$4<=72,VLOOKUP($L$4,Aluminum_Half_Corrugations,4),"N/A"),IF(VLOOKUP($L$4,all_pipe_arch,5,FALSE)=" 1/2",VLOOKUP($L$4,Aluminum_Pipe_Arch_Half_Corrugations,4),"N/A"))) -> 10 | V19: N/A | W19: =IF(OR($L$3="Box",$L$3="Elliptical",$L$3="Pipe Arch",$L$4<18,$L$4>66),"N/A",VLOOKUP($L$4,Aluminum_Circular_Spiral_Rib,7)) -> 12 | X19: N/A | Y19: =IF(OR($L$3="Box",$L$3="Elliptical"),"N/A",IF($L$3="Circular",IF($L$4<=72,VLOOKUP($L$4,Aluminum_Half_Corrugations,4),"N/A"),IF(VLOOKUP($L$4,all_pipe_arch,5,FALSE)=" 1/2",VLOOKUP($L$4,Aluminum_Pipe_Arch_Half_Corrugations,4),"N/A"))) -> 10
C20: 1 | D20: =IF(OR($L$3="Box",$L$3="Elliptical"),"N/A",IF($L$3="Circular",IF(AND($L$4>=36,$L$4<=120),VLOOKUP($L$4,Round_Inch_Corrugations,7),"N/A"),IF((VLOOKUP($L$4,all_pipe_arch,3,FALSE)=1),VLOOKUP($L$4,Pipe_Arch_Inch_Corrugations,6,FALSE),"N/A"))) -> N/A | E20: =IF(OR($L$3="Box",$L$3="Elliptical"),"N/A",IF($L$3="Circular",IF(AND($L$4>=36,$L$4<=120),VLOOKUP($L$4,Round_Inch_Corrugations,7),"N/A"),IF(VLOOKUP($L$4,all_pipe_arch,3,FALSE)=1,VLOOKUP($L$4,Pipe_Arch_Inch_Corrugations,6,FALSE),"N/A"))) -> N/A | F20: =IF(OR($L$3="Box",$L$3="Elliptical"),"N/A",IF($L$3="Circular",IF(AND($L$4>=36,$L$4<=120),VLOOKUP($L$4,Round_Inch_Corrugations,8),"N/A"),IF(VLOOKUP($L$4,all_pipe_arch,3,FALSE)=1,VLOOKUP($L$4,Pipe_Arch_Inch_Corrugations,7,FALSE),"N/A"))) -> N/A | G20: =IF(OR($L$3="Box",$L$3="Elliptical"),"N/A",IF($L$3="Circular",IF(AND($L$4>=36,$L$4<=120),VLOOKUP($L$4,Round_Inch_Corrugations,8),"N/A"),IF(VLOOKUP($L$4,all_pipe_arch,3,FALSE)=1,VLOOKUP($L$4,Pipe_Arch_Inch_Corrugations,7,FALSE),"N/A"))) -> N/A | H20: =IF(OR($L$3="Box",$L$3="Elliptical"),"N/A",IF($L$3="Circular",IF(AND($L$4>=36,$L$4<=120),VLOOKUP($L$4,Round_Inch_Corrugations,9),"N/A"),IF(VLOOKUP($L$4,all_pipe_arch,3,FALSE)=1,VLOOKUP($L$4,Pipe_Arch_Inch_Corrugations,8,FALSE),"N/A"))) -> N/A | I20: =IF(OR($L$3="Box",$L$3="Elliptical"),"N/A",IF($L$3="Circular",IF(AND($L$4>=36,$L$4<=120),VLOOKUP($L$4,Round_Inch_Corrugations,9),"N/A"),IF(VLOOKUP($L$4,all_pipe_arch,3,FALSE)=1,VLOOKUP($L$4,Pipe_Arch_Inch_Corrugations,8,FALSE),"N/A"))) -> N/A | J20: =IF(OR($L$3="Box",$L$3="Elliptical"),"N/A",IF($L$3="Circular",IF(AND($L$4>=36,$L$4<=120),VLOOKUP($L$4,Round_Inch_Corrugations,7),"N/A"),IF((VLOOKUP($L$4,all_pipe_arch,3,FALSE)=1),VLOOKUP($L$4,Pipe_Arch_Inch_Corrugations,6,FALSE),"N/A"))) -> N/A | K20: =IF(OR($L$3="Box",$L$3="Elliptical"),"N/A",IF($L$3="Circular",IF(AND($L$4>=36,$L$4<=120),VLOOKUP($L$4,Round_Inch_Corrugations,8),"N/A"),IF(VLOOKUP($L$4,all_pipe_arch,3,FALSE)=1,VLOOKUP($L$4,Pipe_Arch_Inch_Corrugations,7,FALSE),"N/A"))) -> N/A | L20: N/A | M20: N/A | N20: =IF(OR($L$3="Box",$L$3="Elliptical"),"N/A",IF($L$3="Circular",IF(AND($L$4>=36,$L$4<=120),VLOOKUP($L$4,Round_Inch_Corrugations,7),"N/A"),IF(VLOOKUP($L$4,all_pipe_arch,3,FALSE)=1,VLOOKUP($L$4,Pipe_Arch_Inch_Corrugations,6,FALSE),"N/A"))) -> N/A | O20: =IF(OR($L$3="Box",$L$3="Elliptical"),"N/A",IF($L$3="Circular",IF(AND($L$4>=36,$L$4<=120),VLOOKUP($L$4,Round_Inch_Corrugations,8),"N/A"),IF(VLOOKUP($L$4,all_pipe_arch,3,FALSE)=1,VLOOKUP($L$4,Pipe_Arch_Inch_Corrugations,7,FALSE),"N/A"))) -> N/A | P20: N/A | Q20: N/A | R20: N/A | S20: N/A | U20: =IF(OR($L$3="Box",$L$3="Elliptical"),"N/A",IF($L$3="Circular",IF(AND($L$4>=36,$L$4<=120),VLOOKUP($L$4,Aluminum_Inch_Corrugations,4),"N/A"),IF((VLOOKUP($L$4,all_pipe_arch,6,FALSE)=1),VLOOKUP($L$4,Aluminum_Pipe_Arch_Inch_Corrugations,4,FALSE),"N/A"))) -> N/A | V20: N/A | W20: N/A | X20: N/A | Y20: =IF(OR($L$3="Box",$L$3="Elliptical"),"N/A",IF($L$3="Circular",IF(AND($L$4>=36,$L$4<=120),VLOOKUP($L$4,Aluminum_Inch_Corrugations,4),"N/A"),IF((VLOOKUP($L$4,all_pipe_arch,6,FALSE)=1),VLOOKUP($L$4,Aluminum_Pipe_Arch_Inch_Corrugations,4,FALSE),"N/A"))) -> N/A
C21: 2 | D21: =IF(OR($L$3="Box",$L$3="Elliptical"),"N/A",IF($L$3="Circular",IF($L$4<60,"N/A",VLOOKUP($L$4,Round_Plate,7)),IF(VLOOKUP($L$4,all_pipe_arch,4,FALSE)=2,1,"N/A"))) -> N/A | E21: =IF(OR($L$3="Box",$L$3="Elliptical"),"N/A",IF($L$3="Circular",IF($L$4<60,"N/A",VLOOKUP($L$4,Round_Plate,7)),IF(VLOOKUP($L$4,all_pipe_arch,4,FALSE)=2,1,"N/A"))) -> N/A | F21: N/A | G21: N/A | H21: N/A | I21: N/A | J21: =IF(OR($L$3="Box",$L$3="Elliptical"),"N/A",IF($L$3="Circular",IF($L$4<60,"N/A",VLOOKUP($L$4,Round_Plate,7)),IF(VLOOKUP($L$4,all_pipe_arch,4,FALSE)=2,1,"N/A"))) -> N/A | K21: N/A | L21: N/A | M21: N/A | N21: N/A | O21: N/A | P21: =IF($L$3="Box",IF(OR($P$25>=75,$P$26>=75,$P$27>=75,$P$28>=75,$P$29>=75,$P$30>=75,$P$31>=75,$P$32>=75,$P$33>=75),1,"N/A"),"N/A") -> N/A | Q21: N/A | R21: N/A | S21: N/A | U21: N/A | V21: =IF(OR($L$3="Box",$L$3="Elliptical"),"N/A",IF($L$3="Circular",IF(OR($L$4<60,$L$4>228),"N/A",VLOOKUP($L$4,Aluminum_Circular_Plate,7)),IF((VLOOKUP($L$4,all_pipe_arch,7,FALSE)=2),VLOOKUP($L$4,Aluminum_Pipe_Arch_Plate,7),"N/A"))) -> N/A | W21: N/A | X21: =IF($L$3="Box",IF(OR($P$25>=75,$P$26>=75,$P$27>=75,$P$28>=75,$P$29>=75,$P$30>=75,$P$31>=75,$P$32>=75,$P$33>=75),0.25,"N/A"),"N/A") -> N/A | Y21: =IF(OR($L$3="Box",$L$3="Elliptical"),"N/A",IF($L$3="Circular",IF(OR($L$4<60,$L$4>228),"N/A",VLOOKUP($L$4,Aluminum_Circular_Plate,7)),IF((VLOOKUP($L$4,all_pipe_arch,7,FALSE)=2),VLOOKUP($L$4,Aluminum_Pipe_Arch_Plate,7),"N/A"))) -> N/A
C22: 3/4 | D22: N/A | E22: N/A | F22: N/A | G22: N/A | H22: N/A | I22: N/A | J22: N/A | K22: N/A | L22: =IF(OR($L$3="Box",$L$3="Elliptical",$L$3="Pipe Arch",$L$4>90,$L$4<18,$L$4=27),"N/A",IF($L$3="Circular",VLOOKUP($L$4,Spiral_Rib_Pipe,9,FALSE))) -> 12 | M22: =IFERROR((IF(OR($L$3="Box",$L$3="Elliptical"),"N/A",IF($L$3="Circular",VLOOKUP($L$4,Spiral_Rib_Pipe,8,FALSE),IF(VLOOKUP($L$4,all_pipe_arch,8,FALSE)="1/4 ",VLOOKUP($L$4,Spiral_Rib_Pipe_Arch,8),"N/A")))),"N/A") -> 12 | N22: N/A | O22: N/A | P22: N/A | Q22: N/A | R22: N/A | S22: N/A | U22: N/A | V22: N/A | W22: =IF(OR($L$3="Box",$L$3="Elliptical",$L$3="Pipe Arch",$L$4<18,$L$4>66),"N/A",VLOOKUP($L$4,Aluminum_Circular_Spiral_Rib,7)) -> 12 | X22: N/A | Y22: N/A
B24: Gauge | C24: Thickness (inches) | D24: =N56 -> 0 | E24: =N50 -> 20 | F24: =N51 -> 35 | G24: =N50+N51 -> 55 | H24: =N53 -> 50 | I24: =N50+N53 -> 70 | J24: =N54 -> 10 | K24: =N54+N51 -> 45 | L24: =N53 -> 50 | M24: =N52 -> 35 | N24: =N55 -> 25 | O24: =N51+N55 -> 60 | P24: =N56 -> 0 | Q24: =N53 -> 50 | R24: =N53 -> 50 | S24: =N53 -> 50 | T24: 0 | U24: 75 | Y24: =75+N50 -> 95
B25: 16 | C25: 0.064 | D25: =IF($C$8<6,0,(IF($D$8>=4,0,(($H$8-(6.755*LOG10($C$8))+(0.344*$D$8)-(10.324*$C25)-(6.466*LOG10($F$8))+4.254)/-0.068)+$D$24))) -> 0 | E25: =IF(IFERROR(MATCH($L$4,'Reference Data'!$B$150:$B$256,0)<=11,0),0,(IF(AND($L$3="Circular",$L$4<60),0,((($H$8-(6.755*LOG10($C$8))+(0.344*$D$8)-(10.324*$C25)-(6.466*LOG10($F$8))+4.254)/-0.068)+$E$24)))) -> 0 | F25: =IF($D$8>=4,0,(IF(AND($C$8>=5,$C$8<9),((($H$8-(6.755*LOG10($C$8))+(0.344*$D$8)-(10.324*$C25)-(6.466*LOG10($F$8))+4.254)/-0.068)+$F$24),0))) -> 0 | G25: =IF(IFERROR(MATCH($L$4,'Reference Data'!$B$150:$B$256,0)<=11,0),0,(IF(AND($L$3="Circular",$L$4<60),0,IF(AND($C$8>=5,$C$8<9),((($H$8-(6.755*LOG10($C$8))+(0.344*$D$8)-(10.324*$C25)-(6.466*LOG10($F$8))+4.254)/-0.068)+$G$24),0)))) -> 0 | H25: =IF($D$8>=4,0,IF($C$8<=5,0,IF($C$8=9,0,((($H$8-(6.755*LOG10($C$8))+(0.344*$D$8)-(10.324*$C25)-(6.466*LOG10($F$8))+4.254)/-0.068)+$H$24)))) -> 0 | I25: =IF(IFERROR(MATCH($L$4,'Reference Data'!$B$150:$B$256,0)<=11,0),0,(IF(AND($L$3="Circular",$L$4<60),0,(IF($D$8>=5,0,IF($C$8<=4,0,IF($C$8=9,0,IF($C$8<=3,0,((($H$8-(6.755*LOG10($C$8))+(0.344*$D$8)-(10.324*$C25)-(6.466*LOG10($F$8))+4.254)/-0.068)+$I$24))))))))) -> 0 | J25: =IF(OR($D$8>=4,$C$8<6),0,((($H$8-(6.755*LOG10($C$8))+(0.344*$D$8)-(10.324*$C25)-(6.466*LOG10($F$8))+4.254)/-0.068)+$J$24)) -> 0 | K25: =IF(OR($D$8>=4,$C$8<5),0,((($H$8-(6.755*LOG10($C$8))+(0.344*$D$8)-(10.324*$C25)-(6.466*LOG10($F$8))+4.254)/-0.068)+$K$24)) -> 0 | L25: =IF(OR($D$8>=4,$C$8<=5),0,IF($C$8=9,0,((($H$8-(6.755*LOG10($C$8))+(0.344*$D$8)-(10.324*$C25)-(6.466*LOG10($F$8))+4.254)/-0.068)+$L$24))) -> 0 | M25: =IF($D$8>=4,0,IF(AND($C$8>=5,$C$8<9),((($H$8-(6.755*LOG10($C$8))+(0.344*$D$8)-(10.324*$C25)-(6.466*LOG10($F$8))+4.254)/-0.068)+$M$24),0)) -> 0 | N25: =IF($D$8>=4,0,((($H$8-(6.755*LOG10($C$8))+(0.344*$D$8)-(10.324*$C25)-(6.466*LOG10($F$8))+4.254)/-0.068)+$N$24)) -> 0 | O25: =IF($D$8>=4,0,(IF(AND($C$8>=5,$C$8<9),((($H$8-(6.755*LOG10($C$8))+(0.344*$D$8)-(10.324*$C25)-(6.466*LOG10($F$8))+4.254)/-0.068)+$O$24),0))) -> 0 | P25: =IF($C$8<6,0,(IF($D$8>=4,0,(($H$8-(6.755*LOG10($C$8))+(0.344*$D$8)-(10.324*$C25)-(6.466*LOG10($F$8))+4.254)/-0.068)+$P$24))) -> 0 | Q25: =IF($D$8>=6,0,IF($C$8<=4,0,IF($C$8=9,0,((($H$8-(6.755*LOG10($C$8))+(0.344*$D$8)-(10.324*$C25)-(6.466*LOG10($F$8))+4.254)/-0.068)+$Q$24)))) -> 82.60744723 | R25: =IF($D$8>=6,0,IF($C$8<=4,0,IF($C$8=9,0,((($H$8-(6.755*LOG10($C$8))+(0.344*$D$8)-(10.324*$C25)-(6.466*LOG10($F$8))+4.254)/-0.068)+$Q$24)))) -> 82.60744723 | S25: =IF($D$8>=6,0,IF($C$8<=4,0,IF($C$8=9,0,((($H$8-(6.755*LOG10($C$8))+(0.344*$D$8)-(10.324*$C25)-(6.466*LOG10($F$8))+4.254)/-0.068)+$Q$24)))) -> 82.60744723 | U25: =IF(AND($C$8>=5,$C$8<9),(IF($D$8<=2,$U$24,0)),0) -> 0 | V25: =IF(AND($C$8>=5,$C$8<9),(IF($D$8<=2,$U$24,0)),0) -> 0 | W25: =IF(AND($C$8>=5,$C$8<9),(IF($D$8<=2,$U$24,0)),0) -> 0 | X25: =IF(AND($C$8>=5,$C$8<9),(IF($D$8<=2,$U$24,0)),0) -> 0 | Y25: =IF(IFERROR(MATCH($L$4,'Reference Data'!$B$150:$B$256,0)<=11,0),0,(IF(AND($L$3="Circular",$L$4<60),0,(IF(AND($C$8>=5,$C$8<9),$Y$24,0))))) -> 0
B26: 14 | C26: 0.079 | D26: =IF($C$8<6,0,(IF($D$8>=4,0,(($H$8-(6.755*LOG10($C$8))+(0.344*$D$8)-(10.324*$C26)-(6.466*LOG10($F$8))+4.254)/-0.068)+$D$24))) -> 0 | E26: =IF(IFERROR(MATCH($L$4,'Reference Data'!$B$150:$B$256,0)<=11,0),0,(IF(AND($L$3="Circular",$L$4<60),0,((($H$8-(6.755*LOG10($C$8))+(0.344*$D$8)-(10.324*$C26)-(6.466*LOG10($F$8))+4.254)/-0.068)+$E$24)))) -> 0 | F26: =IF($D$8>=4,0,(IF(AND($C$8>=5,$C$8<9),((($H$8-(6.755*LOG10($C$8))+(0.344*$D$8)-(10.324*$C26)-(6.466*LOG10($F$8))+4.254)/-0.068)+$F$24),0))) -> 0 | G26: =IF(IFERROR(MATCH($L$4,'Reference Data'!$B$150:$B$256,0)<=11,0),0,(IF(AND($L$3="Circular",$L$4<60),0,IF(AND($C$8>=5,$C$8<9),((($H$8-(6.755*LOG10($C$8))+(0.344*$D$8)-(10.324*$C26)-(6.466*LOG10($F$8))+4.254)/-0.068)+$G$24),0)))) -> 0 | H26: =IF($D$8>=4,0,IF($C$8<=5,0,IF($C$8=9,0,((($H$8-(6.755*LOG10($C$8))+(0.344*$D$8)-(10.324*$C26)-(6.466*LOG10($F$8))+4.254)/-0.068)+$H$24)))) -> 0 | I26: =IF(IFERROR(MATCH($L$4,'Reference Data'!$B$150:$B$256,0)<=11,0),0,(IF(AND($L$3="Circular",$L$4<60),0,(IF($D$8>=5,0,IF($C$8<=4,0,IF($C$8=9,0,IF($C$8<=3,0,((($H$8-(6.755*LOG10($C$8))+(0.344*$D$8)-(10.324*$C26)-(6.466*LOG10($F$8))+4.254)/-0.068)+$I$24))))))))) -> 0 | J26: =IF(OR($D$8>=4,$C$8<6),0,((($H$8-(6.755*LOG10($C$8))+(0.344*$D$8)-(10.324*$C26)-(6.466*LOG10($F$8))+4.254)/-0.068)+$J$24)) -> 0 | K26: =IF(OR($D$8>=4,$C$8<5),0,((($H$8-(6.755*LOG10($C$8))+(0.344*$D$8)-(10.324*$C26)-(6.466*LOG10($F$8))+4.254)/-0.068)+$K$24)) -> 0 | L26: =IF(OR($D$8>=4,$C$8<=5),0,IF($C$8=9,0,((($H$8-(6.755*LOG10($C$8))+(0.344*$D$8)-(10.324*$C26)-(6.466*LOG10($F$8))+4.254)/-0.068)+$L$24))) -> 0 | M26: =IF($D$8>=4,0,IF(AND($C$8>=5,$C$8<9),((($H$8-(6.755*LOG10($C$8))+(0.344*$D$8)-(10.324*$C26)-(6.466*LOG10($F$8))+4.254)/-0.068)+$M$24),0)) -> 0 | N26: =IF($D$8>=4,0,((($H$8-(6.755*LOG10($C$8))+(0.344*$D$8)-(10.324*$C26)-(6.466*LOG10($F$8))+4.254)/-0.068)+$N$24)) -> 0 | O26: =IF($D$8>=4,0,(IF(AND($C$8>=5,$C$8<9),((($H$8-(6.755*LOG10($C$8))+(0.344*$D$8)-(10.324*$C26)-(6.466*LOG10($F$8))+4.254)/-0.068)+$O$24),0))) -> 0 | P26: =IF($C$8<6,0,(IF($D$8>=4,0,(($H$8-(6.755*LOG10($C$8))+(0.344*$D$8)-(10.324*$C26)-(6.466*LOG10($F$8))+4.254)/-0.068)+$P$24))) -> 0 | Q26: 84.88480017 | R26: 84.88480017 | S26: 84.88480017
B27: 12 | C27: 0.109 | D27: 0 | E27: =IF(IFERROR(MATCH($L$4,'Reference Data'!$B$150:$B$256,0)<=11,0),0,(IF(AND($L$3="Circular",$L$4<60),0,((($H$8-(6.755*LOG10($C$8))+(0.344*$D$8)-(10.324*$C27)-(6.466*LOG10($F$8))+4.254)/-0.068)+$E$24)))) -> 0 | F27: 0 | G27: =IF(IFERROR(MATCH($L$4,'Reference Data'!$B$150:$B$256,0)<=11,0),0,(IF(AND($L$3="Circular",$L$4<60),0,IF(AND($C$8>=5,$C$8<9),((($H$8-(6.755*LOG10($C$8))+(0.344*$D$8)-(10.324*$C27)-(6.466*LOG10($F$8))+4.254)/-0.068)+$G$24),0)))) -> 0 | H27: 0 | I27: =IF(IFERROR(MATCH($L$4,'Reference Data'!$B$150:$B$256,0)<=11,0),0,(IF(AND($L$3="Circular",$L$4<60),0,(IF($D$8>=5,0,IF($C$8<=4,0,IF($C$8=9,0,IF($C$8<=3,0,((($H$8-(6.755*LOG10($C$8))+(0.344*$D$8)-(10.324*$C27)-(6.466*LOG10($F$8))+4.254)/-0.068)+$I$24))))))))) -> 0 | J27: 0 | K27: 0 | L27: 0 | M27: 0 | N27: 0 | O27: 0 | P27: 0 | Q27: =IF($D$8>=6,0,IF($C$8<=4,0,IF($C$8=9,0,((($H$8-(6.755*LOG10($C$8))+(0.344*$D$8)-(10.324*$C27)-(6.466*LOG10($F$8))+4.254)/-0.068)+$Q$24)))) -> 89.43950606 | R27: 89.43950606 | S27: 89.43950606
B28: 10 | C28: 0.138 | D28: 0 | E28: =IF(IFERROR(MATCH($L$4,'Reference Data'!$B$150:$B$256,0)<=11,0),0,(IF(AND($L$3="Circular",$L$4<60),0,((($H$8-(6.755*LOG10($C$8))+(0.344*$D$8)-(10.324*$C28)-(6.466*LOG10($F$8))+4.254)/-0.068)+$E$24)))) -> 0 | F28: 0 | G28: =IF(IFERROR(MATCH($L$4,'Reference Data'!$B$150:$B$256,0)<=11,0),0,(IF(AND($L$3="Circular",$L$4<60),0,IF(AND($C$8>=5,$C$8<9),((($H$8-(6.755*LOG10($C$8))+(0.344*$D$8)-(10.324*$C28)-(6.466*LOG10($F$8))+4.254)/-0.068)+$G$24),0)))) -> 0 | H28: 0 | I28: =IF(IFERROR(MATCH($L$4,'Reference Data'!$B$150:$B$256,0)<=11,0),0,(IF(AND($L$3="Circular",$L$4<60),0,(IF($D$8>=5,0,IF($C$8<=4,0,IF($C$8=9,0,IF($C$8<=3,0,((($H$8-(6.755*LOG10($C$8))+(0.344*$D$8)-(10.324*$C28)-(6.466*LOG10($F$8))+4.254)/-0.068)+$I$24))))))))) -> 0 | J28: 0 | K28: 0 | L28: 0 | M28: 0 | N28: 0 | O28: 0 | P28: 0 | Q28: =IF($D$8>=6,0,IF($C$8<=4,0,IF($C$8=9,0,((($H$8-(6.755*LOG10($C$8))+(0.344*$D$8)-(10.324*$C28)-(6.466*LOG10($F$8))+4.254)/-0.068)+$Q$24)))) -> 93.84238841 | R28: 93.84238841 | S28: 93.84238841
B29: 8 | C29: 0.168 | D29: 0 | E29: =IF(IFERROR(MATCH($L$4,'Reference Data'!$B$150:$B$256,0)<=11,0),0,(IF(AND($L$3="Circular",$L$4<60),0,((($H$8-(6.755*LOG10($C$8))+(0.344*$D$8)-(10.324*$C29)-(6.466*LOG10($F$8))+4.254)/-0.068)+$E$24)))) -> 0 | F29: 0 | G29: =IF(IFERROR(MATCH($L$4,'Reference Data'!$B$150:$B$256,0)<=11,0),0,(IF(AND($L$3="Circular",$L$4<60),0,IF(AND($C$8>=5,$C$8<9),((($H$8-(6.755*LOG10($C$8))+(0.344*$D$8)-(10.324*$C29)-(6.466*LOG10($F$8))+4.254)/-0.068)+$G$24),0)))) -> 0 | H29: 0 | I29: =IF(IFERROR(MATCH($L$4,'Reference Data'!$B$150:$B$256,0)<=11,0),0,(IF(AND($L$3="Circular",$L$4<60),0,(IF($D$8>=5,0,IF($C$8<=4,0,IF($C$8=9,0,IF($C$8<=3,0,((($H$8-(6.755*LOG10($C$8))+(0.344*$D$8)-(10.324*$C29)-(6.466*LOG10($F$8))+4.254)/-0.068)+$I$24))))))))) -> 0 | J29: 0 | K29: 0 | L29: 0 | M29: 0 | N29: 0 | O29: 0 | P29: 0 | Q29: 98.39709429 | R29: 98.39709429 | S29: 98.39709429
B30: 7 | C30: 0.188 | D30: 0 | E30: =IF(IFERROR(MATCH($L$4,'Reference Data'!$B$150:$B$256,0)<=11,0),0,(IF(AND($L$3="Circular",$L$4<60),0,((($H$8-(6.755*LOG10($C$8))+(0.344*$D$8)-(10.324*$C30)-(6.466*LOG10($F$8))+4.254)/-0.068)+$E$24)))) -> 0 | F30: 0 | G30: =IF(IFERROR(MATCH($L$4,'Reference Data'!$B$150:$B$256,0)<=11,0),0,(IF(AND($L$3="Circular",$L$4<60),0,IF(AND($C$8>=5,$C$8<9),((($H$8-(6.755*LOG10($C$8))+(0.344*$D$8)-(10.324*$C30)-(6.466*LOG10($F$8))+4.254)/-0.068)+$G$24),0)))) -> 0 | H30: 0 | I30: =IF(IFERROR(MATCH($L$4,'Reference Data'!$B$150:$B$256,0)<=11,0),0,(IF(AND($L$3="Circular",$L$4<60),0,(IF($D$8>=5,0,IF($C$8<=4,0,IF($C$8=9,0,IF($C$8<=3,0,((($H$8-(6.755*LOG10($C$8))+(0.344*$D$8)-(10.324*$C30)-(6.466*LOG10($F$8))+4.254)/-0.068)+$I$24))))))))) -> 0 | J30: 0 | K30: 0 | L30: 0 | M30: 0 | N30: 0 | O30: 0 | P30: 0 | Q30: 101.4335649 | R30: 101.4335649 | S30: 101.4335649
B31: 5 | C31: 0.218 | D31: 0 | E31: =IF(IFERROR(MATCH($L$4,'Reference Data'!$B$150:$B$256,0)<=11,0),0,(IF(AND($L$3="Circular",$L$4<60),0,((($H$8-(6.755*LOG10($C$8))+(0.344*$D$8)-(10.324*$C31)-(6.466*LOG10($F$8))+4.254)/-0.068)+$E$24)))) -> 0 | F31: 0 | G31: =IF(IFERROR(MATCH($L$4,'Reference Data'!$B$150:$B$256,0)<=11,0),0,(IF(AND($L$3="Circular",$L$4<60),0,IF(AND($C$8>=5,$C$8<9),((($H$8-(6.755*LOG10($C$8))+(0.344*$D$8)-(10.324*$C31)-(6.466*LOG10($F$8))+4.254)/-0.068)+$G$24),0)))) -> 0 | H31: 0 | I31: =IF(IFERROR(MATCH($L$4,'Reference Data'!$B$150:$B$256,0)<=11,0),0,(IF(AND($L$3="Circular",$L$4<60),0,(IF($D$8>=5,0,IF($C$8<=4,0,IF($C$8=9,0,IF($C$8<=3,0,((($H$8-(6.755*LOG10($C$8))+(0.344*$D$8)-(10.324*$C31)-(6.466*LOG10($F$8))+4.254)/-0.068)+$I$24))))))))) -> 0 | J31: 0 | K31: 0 | L31: 0 | M31: 0 | N31: 0 | O31: 0 | P31: 0 | Q31: 105.9882708 | R31: 105.9882708 | S31: 105.9882708
B32: 3 | C32: 0.249 | D32: 0 | E32: =IF(IFERROR(MATCH($L$4,'Reference Data'!$B$150:$B$256,0)<=11,0),0,(IF(AND($L$3="Circular",$L$4<60),0,((($H$8-(6.755*LOG10($C$8))+(0.344*$D$8)-(10.324*$C32)-(6.466*LOG10($F$8))+4.254)/-0.068)+$E$24)))) -> 0 | F32: 0 | G32: =IF(IFERROR(MATCH($L$4,'Reference Data'!$B$150:$B$256,0)<=11,0),0,(IF(AND($L$3="Circular",$L$4<60),0,IF(AND($C$8>=5,$C$8<9),((($H$8-(6.755*LOG10($C$8))+(0.344*$D$8)-(10.324*$C32)-(6.466*LOG10($F$8))+4.254)/-0.068)+$G$24),0)))) -> 0 | H32: 0 | I32: =IF(IFERROR(MATCH($L$4,'Reference Data'!$B$150:$B$256,0)<=11,0),0,(IF(AND($L$3="Circular",$L$4<60),0,(IF($D$8>=5,0,IF($C$8<=4,0,IF($C$8=9,0,IF($C$8<=3,0,((($H$8-(6.755*LOG10($C$8))+(0.344*$D$8)-(10.324*$C32)-(6.466*LOG10($F$8))+4.254)/-0.068)+$I$24))))))))) -> 0 | J32: 0 | K32: 0 | L32: 0 | M32: 0 | N32: 0 | O32: 0 | P32: 0 | Q32: 110.6948002 | R32: 110.6948002 | S32: 110.6948002
B33: 1 | C33: 0.28 | D33: 0 | E33: =IF(IFERROR(MATCH($L$4,'Reference Data'!$B$150:$B$256,0)<=11,0),0,(IF(AND($L$3="Circular",$L$4<60),0,((($H$8-(6.755*LOG10($C$8))+(0.344*$D$8)-(10.324*$C33)-(6.466*LOG10($F$8))+4.254)/-0.068)+$E$24)))) -> 0 | F33: 0 | G33: =IF(IFERROR(MATCH($L$4,'Reference Data'!$B$150:$B$256,0)<=11,0),0,(IF(AND($L$3="Circular",$L$4<60),0,IF(AND($C$8>=5,$C$8<9),((($H$8-(6.755*LOG10($C$8))+(0.344*$D$8)-(10.324*$C33)-(6.466*LOG10($F$8))+4.254)/-0.068)+$G$24),0)))) -> 0 | H33: 0 | I33: =IF(IFERROR(MATCH($L$4,'Reference Data'!$B$150:$B$256,0)<=11,0),0,(IF(AND($L$3="Circular",$L$4<60),0,(IF($D$8>=5,0,IF($C$8<=4,0,IF($C$8=9,0,IF($C$8<=3,0,((($H$8-(6.755*LOG10($C$8))+(0.344*$D$8)-(10.324*$C33)-(6.466*LOG10($F$8))+4.254)/-0.068)+$I$24))))))))) -> 0 | J33: 0 | K33: 0 | L33: 0 | M33: 0 | N33: 0 | O33: 0 | P33: 0 | Q33: 115.4013296 | R33: 115.4013296 | S33: 115.4013296
B34: Casing | C34: 0.5 | T34: =IF($C$8<5,0,(($H$8-(6.755*LOG10($C$8))+(0.344*$D$8)-(10.324*$C34)-(6.466*LOG10($F$8))+4.254)/-0.068)+$T$24) -> 98.80250606
B36: Concrete Conduit Durability Results
B37: Material | D37: **706.01 Non-reinforced Concrete Pipe | E37: **706.02 Reinforced Concrete Circular Pipe | F37: **706.03 Reinforced Concrete Pipe, Epoxy Coated | G37: **706.04 Reinforced Concrete Elliptical Culvert, Storm Drain, and Sewer Pipe | H37: **706.05 Precast Reinforced Concrete Box Sections | I37: 706.08 Clay Drain Tile
B38: Conduit Use and Shape | D38: Culvert or Storm Sewer -Round | E38: Culvet or Storm Sewer -Round | F38: Culvert or Storm Sewer -Round or Elliptical | G38: Culvert or Storm Sewer -Elliptical | H38: Culvert or Storm Sewer -Box | I38: Culvert or Storm Sewer - Round
D39: =IF(AND($L$3="Circular",$L$4<=36),($H$8-10.689*LOG10($C$8)+(0.389*$D$8)+(4.445*(1-$G$8))-4.169)/-0.026,0) -> 109.893495 | E39: =IF(L3="Circular",($H$8-10.689*LOG10($C$8)+(0.389*$D$8)+(4.445*(1-$G$8))-4.169)/-0.026,0) -> 109.893495 | F39: =IF(OR(L3="Circular",L3="Elliptical"),IF($D$39<$I$8,"epoxy required",IF($C$8<5,"epoxy required","epoxy not required")),0) -> epoxy not required | G39: =IF(L3="Elliptical",($H$8-10.689*LOG10($C$8)+(0.389*$D$8)+(4.445*(1-$G$8))-4.169)/-0.026,0) -> 0 | H39: =IF(L3="Box",($H$8-10.689*LOG10($C$8)+(0.389*$D$8)+(4.445*(1-$G$8))-4.169)/-0.026,0) -> 0 | I39: =IF(AND($L$3="Circular",$L$4<=48),$I$8,0) -> 75
B41: Plastic Conduit Durability Results
B42: Material | D42: 707.33 Corrugated Polyethylene Smooth Lined Pipe | E42: 707.34 Polyethylene Plastic Pipe Based on Outside Diameter (OD) | F42: 707.35 Polyethylene Profile Wall Pipe | G42: 707.42 Polyvinyl Chloride Corrugated Smooth Interior Pipe | H42: 707.43 Polyvinyl Chloride Profile Wall Pipe | I42: 707.45 Polyvinyl Chloride Solid Wall Pipe | J42: 707.46 Polyvinyl Chloride Drain Waste and Vent Pipe | K42: 707.47 ABS and Polyvinyl Chloride Composite Pipe | L42: 707.48 Polyvinyl Chloride Large-Diameter Solid Wall Pipe | M42: 707.65 Polypropylene corrugated Double Wall Pipe | N42: 707.69 Polypropylene Triple Wall Pipe | O42: 707.75 Glass-Fiber-Reinforced Polymer Mortar Pipe | P42: 748.02 Polyvinyl Chloride (PVC) Pipe, Joints, and Fittings | Q42: SS938 Steel Reinforced Thermoplastic Ribbed Pipe
B43: Conduit Use and Shape | D43: Culvert, Storm Sewer, or Liner Pipe - Round | E43: Culvert, Storm Sewer, or Liner Pipe - Round | F43: Culvert, Storm Sewer, or Liner Pipe - Round | G43: Storm Sewer or Liner Pipe - Round | H43: Storm Sewer or Liner Pipe - Round | I43: Storm Sewer - Round | J43: Storm Sewer - Round | K43: Storm Sewer - Round | L43: Storm Sewer - Round | M43: Culvert or Storm Sewer - Round | N43: Culvert or Storm Sewer - Round | O43: Culvert, Storm Sewer, or Liner Pipe - Round | P43: Storm Sewer - Round | Q43: Culvert or Liner Pipe - Round
D44: =IF(AND($L$3="Circular",$L$4<=60),$I$8,0) -> 75 | E44: =IF(AND($L$3="Circular",$L$4<=60),$I$8,0) -> 75 | F44: =IF(AND($L$3="Circular",$L$4<=132),$I$8,0) -> 75 | G44: =IF(AND($L$3="Circular",$L$4<=48),$I$8,0) -> 75 | H44: =IF(AND($L$3="Circular",$L$4<=48),$I$8,0) -> 75 | I44: =IF(AND($L$3="Circular",$L$4<=15),$I$8,0) -> 0 | J44: =IF(AND($L$3="Circular",$L$4<=24),$I$8,0) -> 0 | K44: =IF(AND($L$3="Circular",$L$4<=15),$I$8,0) -> 0 | L44: =IF(AND($L$3="Circular",$L$4>=18,$L$4<=60),$I$8,0) -> 75 | M44: =IF(AND($L$3="Circular",$L$4<=60),$I$8,0) -> 75 | N44: =IF(AND($L$3="Circular",$L$4<=60),$I$8,0) -> 75 | O44: =IF(AND($L$3="Circular",$L$4<=156),$I$8,0) -> 75 | P44: =IF(AND($L$3="Circular",$L$4<=60),$I$8,0) -> 75 | Q44: =IF(AND($L$3="Circular",$L$4>=30,$L$4<=120),$I$8,0) -> 75
C48: Notes: | L48: Constants
D49: Many metal options are eliminated when abrasion level equals 4 or greater | M49: Protective Coating Constants-Initial Service Life (years)
D50: Aluminum is only available between pH levels ranging from 5.0 to less than 9.0 | L50: Concrete Invert Paving= | N50: 20
D51: Alumized protective coating is 0 years when pH levels are outside of allowable for Aluminum | L51: Aluminized= | N51: 35
D52: Polymeric coated is only available for pH ranges greater than 5.0 and less than 9.0 | L52: Aluminized Spiral Rib= | N52: 35
D53: Options were emiminated when the NCSPA online Service Life Calculator did not recommend option; typically due to abrasive conditions or pH limitations | L53: Polymeric= | N53: 50
D54: Epoxy is required on all concrete surfaces when pH<5 | L54: Bituminous coated w/ bitum. paved invert= | N54: 10
D55: ** Smooth lined conduit | L55: Bituminous lined = | N55: 25
D56: ***Minimum gauges set per industry comments; see Reference Data | L56: Galvanized= | N56: 0
D57: Provide concrete field paving on corrugated metal conduits 60” or larger where the invert is always submerged due to tail water conditions from a body of water
D58: Designer is responsible to ensure the required gage thickness is available for the given pipe size

Sheet Example
B2: Example -Conduit Type: Type A Culvert; Conduit Shape: Circular; Hydraulic Requirements: 66 inch smooth or corrugated; Stream Information: pH=7.8, Abrasion Level=2
B3: County | C3: Knox | E3: Route | F3: 4 | G3: Section | H3: 14.36 | I3: PID | J3: 99999 | K3: Shape | L3: Circular
B4: Station | C4: 16+00 | E4: Station | F4: 16+00 | K4: Span x Rise | L4: 66 | M4: Metal Options: 66" Type A Conduit, 707.02 (0.109) with CFP, 707.02 (0.064) aluminized, 707.04 (0.064)
K5: =IF(L3="Elliptical","Span and Rise not Required for Elliptical Shape",IF(L3="Box","Contact Manufacturer for Span and Rise for Metal Box if specified.","")) -> 
C6: User Input | F6: Constants and Calculated Values
C7: pHw | D7: Abrasion Level | F7: pHs | G7: Sediment/Rise | H7: End of Service Life GA | I7: Service Life Required
C8: 7.8 | D8: 2 | F8: 7.6 | G8: 0 | H8: 4 | I8: 75
B10: Metal Conduit Durability Results
B11: Material | D11: 707.01 , 707.02, or 707.03 Metallic coated (galvanized) | E11: =IF($C$8>=6, "707.01 or 707.02 or 707.03 Metallic coated (galvanized) with Concrete Field Paving", IF( $C$8>=5,"707.01 or 707.02 or 707.03 Metallic coated (galvanized) with External Coating per AASHTO M243 and Concrete Field Paving","707.01 or 707.02 or 707.03 Metallic coated (galvanized) with External Coating per AASHTO M243 and Concrete Field Paving with Epoxy per 706.03")) -> 707.01 or 707.02 or 707.03 Metallic coated (galvanized) with Concrete Field Paving | F11: 707.01 or 707.02 Metallic coated (Aluminized) | G11: =IF($C$8>=6, "***707.01 or 707.02 Metallic coated (aluminized) with Concrete Field Paving", IF( $C$8>=5,"***707.01 or 707.02 Metallic coated (aluminized) with External Coating per AASHTO M243 and Concrete Field Paving","***707.01 or 707.02 Metallic coated (aluminized) with External Coating per AASHTO M243 and Concrete Field Paving with Epoxy per 706.03")) -> ***707.01 or 707.02 Metallic coated (aluminized) with Concrete Field Paving | H11: 707.04 Polymeric Coated over galvanized steel | I11: =IF($C$8>=5, "***707.04 Polymeric Coated with Concrete Field Paving", "***707.04 Polymeric Coated with Epoxy Coated (per 706.03) Concrete Field Paving") -> ***707.04 Polymeric Coated with Concrete Field Paving | J11: 707.05 or 707.07 (707.01 or 707.02 galvanized) 1/2 Bituminous coated with Bituminous paved invert | K11: ***707.05 or 707.07 (707.01 or 707.02 aluminized) 1/2 Bituminous coated with Bituminous paved invert | L11: **707.11 Polymer Precoated spiral rib steel | M11: **707.12 or 707.17 Aluminum coated spiral rib steel | N11: 707.13 or 707.14 (707.01 or 707.02 galvanized) Bituminous lined galvanized steel | O11: 707.13 or 707.14 (707.01 or 707.02 aluminized) Bituminous lined aluminized steel | P11: 707.15 Galvanized steel box | Q11: **707.18 Polymer Precoated, Galvanized Steel Conduits with precoated galvanized smooth steel interior liner | R11: **707.19 Aluminum coated Steel Conduits with precoated galvanized smooth steel interior liner | S11: **707.20 Galvanized Coated Steel Conduits with precoated galvanized smooth steel interior liner | T11: **748.06 Steel Casing Pipe non-galvanized | U11: 707.21 or 707.22 Aluminum | V11: 707.23 Aluminum Structural Plate | W11: 707.24 Aluminum Spiral Rib | X11: 707.25 Aluminum Box | Y11: =IF($C$8>=5,"707.21, 707.22, or 707.23 Aluminum Alloy or Aluminum Alloy Structural Plate with Concrete Invert Paving","707.21, 707.22, or 707.23 Aluminum Alloy or Aluminum Alloy Structural Plate with Concrete Invert Paving with Epoxy Coated (per 706.03) Concrete Invert Paving") -> 707.21, 707.22, or 707.23 Aluminum Alloy or Aluminum Alloy Structural Plate with Concrete Invert Paving
B12: Conduit Use and Shape | D12: Culvert or Liner Pipe -Round or Pipe Arch | E12: Culvert-Round, Pipe Arch, and Arch | F12: Culvert or Liner Pipe -Round or Pipe Arch | G12: Culvert -Round or Pipe Arch | H12: Culvert or Liner Pipe -Round or Pipe Arch | I12: Culvert-Round or Pipe Arch | J12: Culvert -Round or Pipe Arch | K12: Culvert -Round or Pipe Arch | L12: Storm Sewer or Liner Pipe- Round | M12: Liner Pipe- Round or Pipe Arch | N12: Storm Sewer - Round or Pipe Arch | O12: Storm Sewer -Round or Pipe Arch | P12: Culvert -Box | Q12: Liner Pipe -Round | R12: Liner Pipe -Round | S12: Liner Pipe - Round | T12: Culvert or Liner Pipe-Round, Pipe Arch, or Box | U12: Culvert or Liner Pipe-Round or Pipe Arch | V12: Culvert or Liner Pipe -Round, Pipe Arch, and Arch | W12: Storm Sewer or Liner Pipe -Round | X12: Culvert -Box | Y12: Culvert - Round or Pipe Arch
C13: Corr. Depth (inches)
B14: min gauge or thickness | C14: 1/4 or 1/2 | D14: =IF(OR($L$3="Box",$L$3="Elliptical"),"N/A",IF($L$3="Circular",IF($L$4<=84,VLOOKUP($L$4,Round_Half_Corrugations,6),"N/A"),IF(VLOOKUP($L$4,all_pipe_arch,2,FALSE)="1/4 or 1/2",VLOOKUP($L$4,Pipe_Arch_Half_Corrugations,5),"N/A"))) -> 10 | E14: 10 | F14: 10 | G14: 10 | H14: 10 | I14: 10 | J14: 10 | K14: 10 | L14: N/A | M14: N/A | N14: =IF(OR($L$3="Box",$L$3="Elliptical"),"N/A",IF($L$3="Circular",IF($L$4<=84,VLOOKUP($L$4,Round_Half_Corrugations,6),"N/A"),IF(VLOOKUP($L$4,all_pipe_arch,2,FALSE)="1/4 or 1/2",VLOOKUP($L$4,Pipe_Arch_Half_Corrugations,5),"N/A"))) -> 10 | O14: =IF(OR($L$3="Box",$L$3="Elliptical"),"N/A",IF($L$3="Circular",IF($L$4<=84,VLOOKUP($L$4,Round_Half_Corrugations,6),"N/A"),IF(VLOOKUP($L$4,all_pipe_arch,2,FALSE)="1/4 or 1/2",VLOOKUP($L$4,Pipe_Arch_Half_Corrugations,5),"N/A"))) -> 10 | P14: N/A | Q14: =IF(OR($L$3="Box",$L$3="Elliptical",$L$3="Pipe Arch",$L$4>90,$L$4<18,$L$4=27),"N/A",IF($L$3="Circular",VLOOKUP($L$4,Spiral_Rib_Pipe,6,FALSE))) -> 12 | R14: =IF(OR($L$3="Box",$L$3="Elliptical",$L$3="Pipe Arch",$L$4>90,$L$4<18,$L$4=27),"N/A",IF($L$3="Circular",VLOOKUP($L$4,Spiral_Rib_Pipe,6,FALSE))) -> 12 | S14: =IF(OR($L$3="Box",$L$3="Elliptical",$L$3="Pipe Arch",$L$4>90,$L$4<18,$L$4=27),"N/A",IF($L$3="Circular",VLOOKUP($L$4,Spiral_Rib_Pipe,6,FALSE))) -> 12 | T14: 0.5 | U14: =IF(OR($L$3="Box",$L$3="Elliptical"),"N/A",IF($L$3="Circular",IF($L$4<=72,VLOOKUP($L$4,Aluminum_Half_Corrugations,3),"N/A"),IF(VLOOKUP($L$4,all_pipe_arch,5,FALSE)=" 1/2",VLOOKUP($L$4,Aluminum_Pipe_Arch_Half_Corrugations,3),"N/A"))) -> 8 | V14: N/A | W14: N/A | X14: N/A | Y14: =IF(OR($L$3="Box",$L$3="Elliptical"),"N/A",IF($L$3="Circular",IF($L$4<=72,VLOOKUP($L$4,Aluminum_Half_Corrugations,3),"N/A"),IF(VLOOKUP($L$4,all_pipe_arch,5,FALSE)=" 1/2",VLOOKUP($L$4,Aluminum_Pipe_Arch_Half_Corrugations,3),"N/A"))) -> 8
C15: 1 | D15: =IF(OR($L$3="Box",$L$3="Elliptical"),"N/A",IF($L$3="Circular",IF(AND($L$4>=36,$L$4<=120),VLOOKUP($L$4,Round_Inch_Corrugations,6),"N/A"),IF((VLOOKUP($L$4,all_pipe_arch,3,FALSE)=1),VLOOKUP($L$4,Pipe_Arch_Inch_Corrugations,6,FALSE),"N/A"))) -> 12 | E15: =IF(OR($L$3="Box",$L$3="Elliptical"),"N/A",IF($L$3="Circular",IF(AND($L$4>=36,$L$4<=120),VLOOKUP($L$4,Round_Inch_Corrugations,6),"N/A"),IF((VLOOKUP($L$4,all_pipe_arch,3,FALSE)=1),VLOOKUP($L$4,Pipe_Arch_Inch_Corrugations,6,FALSE),"N/A"))) -> 12 | F15: =IF(OR($L$3="Box",$L$3="Elliptical"),"N/A",IF($L$3="Circular",IF(AND($L$4>=36,$L$4<=120),VLOOKUP($L$4,Round_Inch_Corrugations,6),"N/A"),IF(VLOOKUP($L$4,all_pipe_arch,3,FALSE)=1,VLOOKUP($L$4,Pipe_Arch_Inch_Corrugations,5,FALSE),"N/A"))) -> 12 | G15: =IF(OR($L$3="Box",$L$3="Elliptical"),"N/A",IF($L$3="Circular",IF(AND($L$4>=36,$L$4<=120),VLOOKUP($L$4,Round_Inch_Corrugations,6),"N/A"),IF(VLOOKUP($L$4,all_pipe_arch,3,FALSE)=1,VLOOKUP($L$4,Pipe_Arch_Inch_Corrugations,5,FALSE),"N/A"))) -> 12 | H15: =IF(OR($L$3="Box",$L$3="Elliptical"),"N/A",IF($L$3="Circular",IF(AND($L$4>=36,$L$4<=120),VLOOKUP($L$4,Round_Inch_Corrugations,6),"N/A"),IF(VLOOKUP($L$4,all_pipe_arch,3,FALSE)=1,VLOOKUP($L$4,Pipe_Arch_Inch_Corrugations,5,FALSE),"N/A"))) -> 12 | I15: =IF(OR($L$3="Box",$L$3="Elliptical"),"N/A",IF($L$3="Circular",IF(AND($L$4>=36,$L$4<=120),VLOOKUP($L$4,Round_Inch_Corrugations,6),"N/A"),IF(VLOOKUP($L$4,all_pipe_arch,3,FALSE)=1,VLOOKUP($L$4,Pipe_Arch_Inch_Corrugations,5,FALSE),"N/A"))) -> 12 | J15: =IF(OR($L$3="Box",$L$3="Elliptical"),"N/A",IF($L$3="Circular",IF(AND($L$4>=36,$L$4<=120),VLOOKUP($L$4,Round_Inch_Corrugations,6),"N/A"),IF((VLOOKUP($L$4,all_pipe_arch,3,FALSE)=1),VLOOKUP($L$4,Pipe_Arch_Inch_Corrugations,6,FALSE),"N/A"))) -> 12 | K15: =IF(OR($L$3="Box",$L$3="Elliptical"),"N/A",IF($L$3="Circular",IF(AND($L$4>=36,$L$4<=120),VLOOKUP($L$4,Round_Inch_Corrugations,6),"N/A"),IF(VLOOKUP($L$4,all_pipe_arch,3,FALSE)=1,VLOOKUP($L$4,Pipe_Arch_Inch_Corrugations,5,FALSE),"N/A"))) -> 12 | L15: N/A | M15: N/A | N15: =IF(OR($L$3="Box",$L$3="Elliptical"),"N/A",IF($L$3="Circular",IF(AND($L$4>=36,$L$4<=120),VLOOKUP($L$4,Round_Inch_Corrugations,6),"N/A"),IF(VLOOKUP($L$4,all_pipe_arch,3,FALSE)=1,VLOOKUP($L$4,Pipe_Arch_Inch_Corrugations,5,FALSE),"N/A"))) -> 12 | O15: =IF(OR($L$3="Box",$L$3="Elliptical"),"N/A",IF($L$3="Circular",IF(AND($L$4>=36,$L$4<=120),VLOOKUP($L$4,Round_Inch_Corrugations,6),"N/A"),IF(VLOOKUP($L$4,all_pipe_arch,3,FALSE)=1,VLOOKUP($L$4,Pipe_Arch_Inch_Corrugations,5,FALSE),"N/A"))) -> 12 | P15: N/A | Q15: N/A | R15: N/A | S15: N/A | U15: =IF(OR($L$3="Box",$L$3="Elliptical"),"N/A",IF($L$3="Circular",IF(AND($L$4>=36,$L$4<=120),VLOOKUP($L$4,Aluminum_Inch_Corrugations,3),"N/A"),IF((VLOOKUP($L$4,all_pipe_arch,6,FALSE)=1),VLOOKUP($L$4,Aluminum_Pipe_Arch_Inch_Corrugations,3,FALSE),"N/A"))) -> 12 | V15: N/A | W15: N/A | X15: N/A | Y15: =IF(OR($L$3="Box",$L$3="Elliptical"),"N/A",IF($L$3="Circular",IF(AND($L$4>=36,$L$4<=120),VLOOKUP($L$4,Aluminum_Inch_Corrugations,3),"N/A"),IF((VLOOKUP($L$4,all_pipe_arch,6,FALSE)=1),VLOOKUP($L$4,Aluminum_Pipe_Arch_Inch_Corrugations,3,FALSE),"N/A"))) -> 12
C16: 2 | D16: =IF(OR($L$3="Box",$L$3="Elliptical"),"N/A",IF($L$3="Circular",IF($L$4<60,"N/A",VLOOKUP($L$4,Round_Plate,6)),IF(VLOOKUP($L$4,all_pipe_arch,4,FALSE)=2,1,"N/A"))) -> 12 | E16: =IF(OR($L$3="Box",$L$3="Elliptical"),"N/A",IF($L$3="Circular",IF($L$4<60,"N/A",VLOOKUP($L$4,Round_Plate,6)),IF(VLOOKUP($L$4,all_pipe_arch,4,FALSE)=2,1,"N/A"))) -> 12 | F16: N/A | G16: N/A | H16: N/A | I16: N/A | J16: =IF(OR($L$3="Box",$L$3="Elliptical"),"N/A",IF($L$3="Circular",IF($L$4<60,"N/A",VLOOKUP($L$4,Round_Plate,6)),IF(VLOOKUP($L$4,all_pipe_arch,4,FALSE)=2,1,"N/A"))) -> 12 | K16: N/A | L16: N/A | M16: N/A | N16: N/A | O16: N/A | P16: =IF($L$3="Box",IF(OR($P$25>=75,$P$26>=75,$P$27>=75,$P$28>=75,$P$29>=75,$P$30>=75,$P$31>=75,$P$32>=75,$P$33>=75),12,"N/A"),"N/A") -> N/A | Q16: N/A | R16: N/A | S16: N/A | U16: N/A | V16: =IF(OR($L$3="Box",$L$3="Elliptical"),"N/A",IF($L$3="Circular",IF(OR($L$4<60,$L$4>228),"N/A",VLOOKUP($L$4,Aluminum_Circular_Plate,6)),IF((VLOOKUP($L$4,all_pipe_arch,7,FALSE)=2),VLOOKUP($L$4,Aluminum_Pipe_Arch_Plate,6),"N/A"))) -> 0.1 | W16: N/A | X16: =IF($L$3="Box",IF(OR($P$25>=75,$P$26>=75,$P$27>=75,$P$28>=75,$P$29>=75,$P$30>=75,$P$31>=75,$P$32>=75,$P$33>=75),0.1,"N/A"),"N/A") -> N/A | Y16: =IF(OR($L$3="Box",$L$3="Elliptical"),"N/A",IF($L$3="Circular",IF(OR($L$4<60,$L$4>228),"N/A",VLOOKUP($L$4,Aluminum_Circular_Plate,6)),IF((VLOOKUP($L$4,all_pipe_arch,7,FALSE)=2),VLOOKUP($L$4,Aluminum_Pipe_Arch_Plate,6),"N/A"))) -> 0.1
C17: 3/4 | D17: N/A | E17: N/A | F17: N/A | G17: N/A | H17: N/A | I17: N/A | J17: N/A | K17: N/A | L17: =IF(OR($L$3="Box",$L$3="Elliptical",$L$3="Pipe Arch",$L$4>90,$L$4<18,$L$4=27),"N/A",IF($L$3="Circular",VLOOKUP($L$4,Spiral_Rib_Pipe,6,FALSE))) -> 12 | M17: =IFERROR((IF(OR($L$3="Box",$L$3="Elliptical"),"N/A",IF($L$3="Circular",VLOOKUP($L$4,Spiral_Rib_Pipe,6,FALSE),IF(VLOOKUP($L$4,all_pipe_arch,8,FALSE)="1/4 ",VLOOKUP($L$4,Spiral_Rib_Pipe_Arch,6),"N/A")))),"N/A") -> 12 | N17: N/A | O17: N/A | P17: N/A | Q17: N/A | R17: N/A | S17: N/A | U17: N/A | V17: N/A | W17: =IF(OR($L$3="Box",$L$3="Elliptical",$L$3="Pipe Arch",$L$4<18,$L$4>66),"N/A",VLOOKUP($L$4,Aluminum_Circular_Spiral_Rib,6)) -> 10 | X17: N/A | Y17: N/A
B19: max gauge or thickness | C19: 1/4 or 1/2 | D19: =IF(OR($L$3="Box",$L$3="Elliptical"),"N/A",IF($L$3="Circular",IF($L$4<=84,VLOOKUP($L$4,Round_Half_Corrugations,7),"N/A"),IF(VLOOKUP($L$4,all_pipe_arch,2,FALSE)="1/4 or 1/2",VLOOKUP($L$4,Pipe_Arch_Half_Corrugations,6),"N/A"))) -> 8 | E19: =IF(OR($L$3="Box",$L$3="Elliptical"),"N/A",IF($L$3="Circular",IF($L$4<=84,VLOOKUP($L$4,Round_Half_Corrugations,7),"N/A"),IF(VLOOKUP($L$4,all_pipe_arch,2,FALSE)="1/4 or 1/2",VLOOKUP($L$4,Pipe_Arch_Half_Corrugations,6),"N/A"))) -> 8 | F19: =IF(OR($L$3="Box",$L$3="Elliptical"),"N/A",IF($L$3="Circular",IF($L$4<=84,VLOOKUP($L$4,Round_Half_Corrugations,8),"N/A"),IF(VLOOKUP($L$4,all_pipe_arch,2,FALSE)="1/4 or 1/2",VLOOKUP($L$4,Pipe_Arch_Half_Corrugations,7),"N/A"))) -> 10 | G19: =IF(OR($L$3="Box",$L$3="Elliptical"),"N/A",IF($L$3="Circular",IF($L$4<=84,VLOOKUP($L$4,Round_Half_Corrugations,8),"N/A"),IF(VLOOKUP($L$4,all_pipe_arch,2,FALSE)="1/4 or 1/2",VLOOKUP($L$4,Pipe_Arch_Half_Corrugations,7),"N/A"))) -> 10 | H19: =IF(OR($L$3="Box",$L$3="Elliptical"),"N/A",IF($L$3="Circular",IF($L$4<=84,VLOOKUP($L$4,Round_Half_Corrugations,9),"N/A"),IF(VLOOKUP($L$4,all_pipe_arch,2,FALSE)="1/4 or 1/2",VLOOKUP($L$4,Pipe_Arch_Half_Corrugations,8),"N/A"))) -> 10 | I19: =IF(OR($L$3="Box",$L$3="Elliptical"),"N/A",IF($L$3="Circular",IF($L$4<=84,VLOOKUP($L$4,Round_Half_Corrugations,9),"N/A"),IF(VLOOKUP($L$4,all_pipe_arch,2,FALSE)="1/4 or 1/2",VLOOKUP($L$4,Pipe_Arch_Half_Corrugations,8),"N/A"))) -> 10 | J19: =IF(OR($L$3="Box",$L$3="Elliptical"),"N/A",IF($L$3="Circular",IF($L$4<=84,VLOOKUP($L$4,Round_Half_Corrugations,7),"N/A"),IF(VLOOKUP($L$4,all_pipe_arch,2,FALSE)="1/4 or 1/2",VLOOKUP($L$4,Pipe_Arch_Half_Corrugations,6),"N/A"))) -> 8 | K19: =IF(OR($L$3="Box",$L$3="Elliptical"),"N/A",IF($L$3="Circular",IF($L$4<=84,VLOOKUP($L$4,Round_Half_Corrugations,8),"N/A"),IF(VLOOKUP($L$4,all_pipe_arch,2,FALSE)="1/4 or 1/2",VLOOKUP($L$4,Pipe_Arch_Half_Corrugations,7),"N/A"))) -> 10 | L19: N/A | M19: N/A | N19: =IF(OR($L$3="Box",$L$3="Elliptical"),"N/A",IF($L$3="Circular",IF($L$4<=84,VLOOKUP($L$4,Round_Half_Corrugations,7),"N/A"),IF(VLOOKUP($L$4,all_pipe_arch,2,FALSE)="1/4 or 1/2",VLOOKUP($L$4,Pipe_Arch_Half_Corrugations,6),"N/A"))) -> 8 | O19: =IF(OR($L$3="Box",$L$3="Elliptical"),"N/A",IF($L$3="Circular",IF($L$4<=84,VLOOKUP($L$4,Round_Half_Corrugations,8),"N/A"),IF(VLOOKUP($L$4,all_pipe_arch,2,FALSE)="1/4 or 1/2",VLOOKUP($L$4,Pipe_Arch_Half_Corrugations,7),"N/A"))) -> 10 | P19: N/A | Q19: =IF(OR($L$3="Box",$L$3="Elliptical",$L$3="Pipe Arch",$L$4>90,$L$4<18,$L$4=27),"N/A",IF($L$3="Circular",VLOOKUP($L$4,Spiral_Rib_Pipe,9,FALSE))) -> 10 | R19: =IF(OR($L$3="Box",$L$3="Elliptical",$L$3="Pipe Arch",$L$4>90,$L$4<18,$L$4=27),"N/A",IF($L$3="Circular",VLOOKUP($L$4,Spiral_Rib_Pipe,9,FALSE))) -> 10 | S19: =IF(OR($L$3="Box",$L$3="Elliptical",$L$3="Pipe Arch",$L$4>90,$L$4<18,$L$4=27),"N/A",IF($L$3="Circular",VLOOKUP($L$4,Spiral_Rib_Pipe,9,FALSE))) -> 10 | T19: 0.5 | U19: =IF(OR($L$3="Box",$L$3="Elliptical"),"N/A",IF($L$3="Circular",IF($L$4<=72,VLOOKUP($L$4,Aluminum_Half_Corrugations,4),"N/A"),IF(VLOOKUP($L$4,all_pipe_arch,5,FALSE)=" 1/2",VLOOKUP($L$4,Aluminum_Pipe_Arch_Half_Corrugations,4),"N/A"))) -> 8 | V19: N/A | W19: =IF(OR($L$3="Box",$L$3="Elliptical",$L$3="Pipe Arch",$L$4<18,$L$4>66),"N/A",VLOOKUP($L$4,Aluminum_Circular_Spiral_Rib,7)) -> 10 | X19: N/A | Y19: =IF(OR($L$3="Box",$L$3="Elliptical"),"N/A",IF($L$3="Circular",IF($L$4<=72,VLOOKUP($L$4,Aluminum_Half_Corrugations,4),"N/A"),IF(VLOOKUP($L$4,all_pipe_arch,5,FALSE)=" 1/2",VLOOKUP($L$4,Aluminum_Pipe_Arch_Half_Corrugations,4),"N/A"))) -> 8
C20: 1 | D20: =IF(OR($L$3="Box",$L$3="Elliptical"),"N/A",IF($L$3="Circular",IF(AND($L$4>=36,$L$4<=120),VLOOKUP($L$4,Round_Inch_Corrugations,7),"N/A"),IF((VLOOKUP($L$4,all_pipe_arch,3,FALSE)=1),VLOOKUP($L$4,Pipe_Arch_Inch_Corrugations,6,FALSE),"N/A"))) -> 8 | E20: =IF(OR($L$3="Box",$L$3="Elliptical"),"N/A",IF($L$3="Circular",IF(AND($L$4>=36,$L$4<=120),VLOOKUP($L$4,Round_Inch_Corrugations,7),"N/A"),IF(VLOOKUP($L$4,all_pipe_arch,3,FALSE)=1,VLOOKUP($L$4,Pipe_Arch_Inch_Corrugations,6,FALSE),"N/A"))) -> 8 | F20: =IF(OR($L$3="Box",$L$3="Elliptical"),"N/A",IF($L$3="Circular",IF(AND($L$4>=36,$L$4<=120),VLOOKUP($L$4,Round_Inch_Corrugations,8),"N/A"),IF(VLOOKUP($L$4,all_pipe_arch,3,FALSE)=1,VLOOKUP($L$4,Pipe_Arch_Inch_Corrugations,7,FALSE),"N/A"))) -> 10 | G20: =IF(OR($L$3="Box",$L$3="Elliptical"),"N/A",IF($L$3="Circular",IF(AND($L$4>=36,$L$4<=120),VLOOKUP($L$4,Round_Inch_Corrugations,8),"N/A"),IF(VLOOKUP($L$4,all_pipe_arch,3,FALSE)=1,VLOOKUP($L$4,Pipe_Arch_Inch_Corrugations,7,FALSE),"N/A"))) -> 10 | H20: =IF(OR($L$3="Box",$L$3="Elliptical"),"N/A",IF($L$3="Circular",IF(AND($L$4>=36,$L$4<=120),VLOOKUP($L$4,Round_Inch_Corrugations,9),"N/A"),IF(VLOOKUP($L$4,all_pipe_arch,3,FALSE)=1,VLOOKUP($L$4,Pipe_Arch_Inch_Corrugations,8,FALSE),"N/A"))) -> 10 | I20: =IF(OR($L$3="Box",$L$3="Elliptical"),"N/A",IF($L$3="Circular",IF(AND($L$4>=36,$L$4<=120),VLOOKUP($L$4,Round_Inch_Corrugations,9),"N/A"),IF(VLOOKUP($L$4,all_pipe_arch,3,FALSE)=1,VLOOKUP($L$4,Pipe_Arch_Inch_Corrugations,8,FALSE),"N/A"))) -> 10 | J20: =IF(OR($L$3="Box",$L$3="Elliptical"),"N/A",IF($L$3="Circular",IF(AND($L$4>=36,$L$4<=120),VLOOKUP($L$4,Round_Inch_Corrugations,7),"N/A"),IF((VLOOKUP($L$4,all_pipe_arch,3,FALSE)=1),VLOOKUP($L$4,Pipe_Arch_Inch_Corrugations,6,FALSE),"N/A"))) -> 8 | K20: =IF(OR($L$3="Box",$L$3="Elliptical"),"N/A",IF($L$3="Circular",IF(AND($L$4>=36,$L$4<=120),VLOOKUP($L$4,Round_Inch_Corrugations,8),"N/A"),IF(VLOOKUP($L$4,all_pipe_arch,3,FALSE)=1,VLOOKUP($L$4,Pipe_Arch_Inch_Corrugations,7,FALSE),"N/A"))) -> 10 | L20: N/A | M20: N/A | N20: =IF(OR($L$3="Box",$L$3="Elliptical"),"N/A",IF($L$3="Circular",IF(AND($L$4>=36,$L$4<=120),VLOOKUP($L$4,Round_Inch_Corrugations,7),"N/A"),IF(VLOOKUP($L$4,all_pipe_arch,3,FALSE)=1,VLOOKUP($L$4,Pipe_Arch_Inch_Corrugations,6,FALSE),"N/A"))) -> 8 | O20: =IF(OR($L$3="Box",$L$3="Elliptical"),"N/A",IF($L$3="Circular",IF(AND($L$4>=36,$L$4<=120),VLOOKUP($L$4,Round_Inch_Corrugations,8),"N/A"),IF(VLOOKUP($L$4,all_pipe_arch,3,FALSE)=1,VLOOKUP($L$4,Pipe_Arch_Inch_Corrugations,7,FALSE),"N/A"))) -> 10 | P20: N/A | Q20: N/A | R20: N/A | S20: N/A | U20: =IF(OR($L$3="Box",$L$3="Elliptical"),"N/A",IF($L$3="Circular",IF(AND($L$4>=36,$L$4<=120),VLOOKUP($L$4,Aluminum_Inch_Corrugations,4),"N/A"),IF((VLOOKUP($L$4,all_pipe_arch,6,FALSE)=1),VLOOKUP($L$4,Aluminum_Pipe_Arch_Inch_Corrugations,4,FALSE),"N/A"))) -> 8 | V20: N/A | W20: N/A | X20: N/A | Y20: =IF(OR($L$3="Box",$L$3="Elliptical"),"N/A",IF($L$3="Circular",IF(AND($L$4>=36,$L$4<=120),VLOOKUP($L$4,Aluminum_Inch_Corrugations,4),"N/A"),IF((VLOOKUP($L$4,all_pipe_arch,6,FALSE)=1),VLOOKUP($L$4,Aluminum_Pipe_Arch_Inch_Corrugations,4,FALSE),"N/A"))) -> 8
C21: 2 | D21: =IF(OR($L$3="Box",$L$3="Elliptical"),"N/A",IF($L$3="Circular",IF($L$4<60,"N/A",VLOOKUP($L$4,Round_Plate,7)),IF(VLOOKUP($L$4,all_pipe_arch,4,FALSE)=2,1,"N/A"))) -> 1 | E21: =IF(OR($L$3="Box",$L$3="Elliptical"),"N/A",IF($L$3="Circular",IF($L$4<60,"N/A",VLOOKUP($L$4,Round_Plate,7)),IF(VLOOKUP($L$4,all_pipe_arch,4,FALSE)=2,1,"N/A"))) -> 1 | F21: N/A | G21: N/A | H21: N/A | I21: N/A | J21: =IF(OR($L$3="Box",$L$3="Elliptical"),"N/A",IF($L$3="Circular",IF($L$4<60,"N/A",VLOOKUP($L$4,Round_Plate,7)),IF(VLOOKUP($L$4,all_pipe_arch,4,FALSE)=2,1,"N/A"))) -> 1 | K21: N/A | L21: N/A | M21: N/A | N21: N/A | O21: N/A | P21: =IF($L$3="Box",IF(OR($P$25>=75,$P$26>=75,$P$27>=75,$P$28>=75,$P$29>=75,$P$30>=75,$P$31>=75,$P$32>=75,$P$33>=75),1,"N/A"),"N/A") -> N/A | Q21: N/A | R21: N/A | S21: N/A | U21: N/A | V21: =IF(OR($L$3="Box",$L$3="Elliptical"),"N/A",IF($L$3="Circular",IF(OR($L$4<60,$L$4>228),"N/A",VLOOKUP($L$4,Aluminum_Circular_Plate,7)),IF((VLOOKUP($L$4,all_pipe_arch,7,FALSE)=2),VLOOKUP($L$4,Aluminum_Pipe_Arch_Plate,7),"N/A"))) -> 0.25 | W21: N/A | X21: =IF($L$3="Box",IF(OR($P$25>=75,$P$26>=75,$P$27>=75,$P$28>=75,$P$29>=75,$P$30>=75,$P$31>=75,$P$32>=75,$P$33>=75),0.25,"N/A"),"N/A") -> N/A | Y21: =IF(OR($L$3="Box",$L$3="Elliptical"),"N/A",IF($L$3="Circular",IF(OR($L$4<60,$L$4>228),"N/A",VLOOKUP($L$4,Aluminum_Circular_Plate,7)),IF((VLOOKUP($L$4,all_pipe_arch,7,FALSE)=2),VLOOKUP($L$4,Aluminum_Pipe_Arch_Plate,7),"N/A"))) -> 0.25
C22: 3/4 | D22: N/A | E22: N/A | F22: N/A | G22: N/A | H22: N/A | I22: N/A | J22: N/A | K22: N/A | L22: =IF(OR($L$3="Box",$L$3="Elliptical",$L$3="Pipe Arch",$L$4>90,$L$4<18,$L$4=27),"N/A",IF($L$3="Circular",VLOOKUP($L$4,Spiral_Rib_Pipe,9,FALSE))) -> 10 | M22: =IFERROR((IF(OR($L$3="Box",$L$3="Elliptical"),"N/A",IF($L$3="Circular",VLOOKUP($L$4,Spiral_Rib_Pipe,8,FALSE),IF(VLOOKUP($L$4,all_pipe_arch,8,FALSE)="1/4 ",VLOOKUP($L$4,Spiral_Rib_Pipe_Arch,8),"N/A")))),"N/A") -> 10 | N22: N/A | O22: N/A | P22: N/A | Q22: N/A | R22: N/A | S22: N/A | U22: N/A | V22: N/A | W22: =IF(OR($L$3="Box",$L$3="Elliptical",$L$3="Pipe Arch",$L$4<18,$L$4>66),"N/A",VLOOKUP($L$4,Aluminum_Circular_Spiral_Rib,7)) -> 10 | X22: N/A | Y22: N/A
B24: Gauge | C24: Thickness (inches) | D24: =N66 -> 0 | E24: =N60 -> 20 | F24: =N61 -> 35 | G24: =N60+N61 -> 55 | H24: =N63 -> 50 | I24: =N60+N63 -> 70 | J24: =N64 -> 10 | K24: =N64+N61 -> 45 | L24: =N63 -> 50 | M24: =N62 -> 35 | N24: =N65 -> 25 | O24: =N61+N65 -> 60 | P24: =N66 -> 0 | Q24: =N63 -> 50 | R24: =N63 -> 50 | S24: =N63 -> 50 | T24: 0 | U24: 75 | Y24: =75+N60 -> 95
B25: 16 | C25: 0.064 | D25: =IF($C$8<6,0,(IF($D$8>=4,0,(($H$8-(6.755*LOG10($C$8))+(0.344*$D$8)-(10.324*$C25)-(6.466*LOG10($F$8))+4.254)/-0.068)+$D$24))) -> 50.59081954 | E25: =IF(IFERROR(MATCH($L$4,'Reference Data'!$B$150:$B$256,0)<=11,0),0,(IF(AND($L$3="Circular",$L$4<60),0,((($H$8-(6.755*LOG10($C$8))+(0.344*$D$8)-(10.324*$C25)-(6.466*LOG10($F$8))+4.254)/-0.068)+$E$24)))) -> 70.59081954 | F25: =IF($D$8>=4,0,(IF(AND($C$8>=5,$C$8<9),((($H$8-(6.755*LOG10($C$8))+(0.344*$D$8)-(10.324*$C25)-(6.466*LOG10($F$8))+4.254)/-0.068)+$F$24),0))) -> 85.59081954 | G25: =IF(IFERROR(MATCH($L$4,'Reference Data'!$B$150:$B$256,0)<=11,0),0,(IF(AND($L$3="Circular",$L$4<60),0,IF(AND($C$8>=5,$C$8<9),((($H$8-(6.755*LOG10($C$8))+(0.344*$D$8)-(10.324*$C25)-(6.466*LOG10($F$8))+4.254)/-0.068)+$G$24),0)))) -> 105.5908195 | H25: =IF($D$8>=4,0,IF($C$8<=5,0,IF($C$8=9,0,((($H$8-(6.755*LOG10($C$8))+(0.344*$D$8)-(10.324*$C25)-(6.466*LOG10($F$8))+4.254)/-0.068)+$H$24)))) -> 100.5908195 | I25: =IF(IFERROR(MATCH($L$4,'Reference Data'!$B$150:$B$256,0)<=11,0),0,(IF(AND($L$3="Circular",$L$4<60),0,(IF($D$8>=5,0,IF($C$8<=4,0,IF($C$8=9,0,IF($C$8<=3,0,((($H$8-(6.755*LOG10($C$8))+(0.344*$D$8)-(10.324*$C25)-(6.466*LOG10($F$8))+4.254)/-0.068)+$I$24))))))))) -> 120.5908195 | J25: =IF(OR($D$8>=4,$C$8<6),0,((($H$8-(6.755*LOG10($C$8))+(0.344*$D$8)-(10.324*$C25)-(6.466*LOG10($F$8))+4.254)/-0.068)+$J$24)) -> 60.59081954 | K25: =IF(OR($D$8>=4,$C$8<5),0,((($H$8-(6.755*LOG10($C$8))+(0.344*$D$8)-(10.324*$C25)-(6.466*LOG10($F$8))+4.254)/-0.068)+$K$24)) -> 95.59081954 | L25: =IF(OR($D$8>=4,$C$8<=5),0,IF($C$8=9,0,((($H$8-(6.755*LOG10($C$8))+(0.344*$D$8)-(10.324*$C25)-(6.466*LOG10($F$8))+4.254)/-0.068)+$L$24))) -> 100.5908195 | M25: =IF($D$8>=4,0,IF(AND($C$8>=5,$C$8<9),((($H$8-(6.755*LOG10($C$8))+(0.344*$D$8)-(10.324*$C25)-(6.466*LOG10($F$8))+4.254)/-0.068)+$M$24),0)) -> 85.59081954 | N25: =IF($D$8>=4,0,((($H$8-(6.755*LOG10($C$8))+(0.344*$D$8)-(10.324*$C25)-(6.466*LOG10($F$8))+4.254)/-0.068)+$N$24)) -> 75.59081954 | O25: =IF($D$8>=4,0,(IF(AND($C$8>=5,$C$8<9),((($H$8-(6.755*LOG10($C$8))+(0.344*$D$8)-(10.324*$C25)-(6.466*LOG10($F$8))+4.254)/-0.068)+$O$24),0))) -> 110.5908195 | P25: =IF($C$8<6,0,(IF($D$8>=4,0,(($H$8-(6.755*LOG10($C$8))+(0.344*$D$8)-(10.324*$C25)-(6.466*LOG10($F$8))+4.254)/-0.068)+$P$24))) -> 50.59081954 | Q25: =IF($D$8>=6,0,IF($C$8<=4,0,IF($C$8=9,0,((($H$8-(6.755*LOG10($C$8))+(0.344*$D$8)-(10.324*$C25)-(6.466*LOG10($F$8))+4.254)/-0.068)+$Q$24)))) -> 100.5908195 | R25: =IF($D$8>=6,0,IF($C$8<=4,0,IF($C$8=9,0,((($H$8-(6.755*LOG10($C$8))+(0.344*$D$8)-(10.324*$C25)-(6.466*LOG10($F$8))+4.254)/-0.068)+$Q$24)))) -> 100.5908195 | S25: =IF($D$8>=6,0,IF($C$8<=4,0,IF($C$8=9,0,((($H$8-(6.755*LOG10($C$8))+(0.344*$D$8)-(10.324*$C25)-(6.466*LOG10($F$8))+4.254)/-0.068)+$Q$24)))) -> 100.5908195 | U25: =IF(AND($C$8>=5,$C$8<9),(IF($D$8<=2,$U$24,0)),0) -> 75 | V25: =IF(AND($C$8>=5,$C$8<9),(IF($D$8<=2,$U$24,0)),0) -> 75 | W25: =IF(AND($C$8>=5,$C$8<9),(IF($D$8<=2,$U$24,0)),0) -> 75 | X25: =IF(AND($C$8>=5,$C$8<9),(IF($D$8<=2,$U$24,0)),0) -> 75 | Y25: =IF(IFERROR(MATCH($L$4,'Reference Data'!$B$150:$B$256,0)<=11,0),0,(IF(AND($L$3="Circular",$L$4<60),0,(IF(AND($C$8>=5,$C$8<9),$Y$24,0))))) -> 95
B26: 14 | C26: 0.079 | D26: =IF($C$8<6,0,(IF($D$8>=4,0,(($H$8-(6.755*LOG10($C$8))+(0.344*$D$8)-(10.324*$C26)-(6.466*LOG10($F$8))+4.254)/-0.068)+$D$24))) -> 52.86817248 | E26: =IF(IFERROR(MATCH($L$4,'Reference Data'!$B$150:$B$256,0)<=11,0),0,(IF(AND($L$3="Circular",$L$4<60),0,((($H$8-(6.755*LOG10($C$8))+(0.344*$D$8)-(10.324*$C26)-(6.466*LOG10($F$8))+4.254)/-0.068)+$E$24)))) -> 72.86817248 | F26: =IF($D$8>=4,0,(IF(AND($C$8>=5,$C$8<9),((($H$8-(6.755*LOG10($C$8))+(0.344*$D$8)-(10.324*$C26)-(6.466*LOG10($F$8))+4.254)/-0.068)+$F$24),0))) -> 87.86817248 | G26: =IF(IFERROR(MATCH($L$4,'Reference Data'!$B$150:$B$256,0)<=11,0),0,(IF(AND($L$3="Circular",$L$4<60),0,IF(AND($C$8>=5,$C$8<9),((($H$8-(6.755*LOG10($C$8))+(0.344*$D$8)-(10.324*$C26)-(6.466*LOG10($F$8))+4.254)/-0.068)+$G$24),0)))) -> 107.8681725 | H26: =IF($D$8>=4,0,IF($C$8<=5,0,IF($C$8=9,0,((($H$8-(6.755*LOG10($C$8))+(0.344*$D$8)-(10.324*$C26)-(6.466*LOG10($F$8))+4.254)/-0.068)+$H$24)))) -> 102.8681725 | I26: =IF(IFERROR(MATCH($L$4,'Reference Data'!$B$150:$B$256,0)<=11,0),0,(IF(AND($L$3="Circular",$L$4<60),0,(IF($D$8>=5,0,IF($C$8<=4,0,IF($C$8=9,0,IF($C$8<=3,0,((($H$8-(6.755*LOG10($C$8))+(0.344*$D$8)-(10.324*$C26)-(6.466*LOG10($F$8))+4.254)/-0.068)+$I$24))))))))) -> 122.8681725 | J26: =IF(OR($D$8>=4,$C$8<6),0,((($H$8-(6.755*LOG10($C$8))+(0.344*$D$8)-(10.324*$C26)-(6.466*LOG10($F$8))+4.254)/-0.068)+$J$24)) -> 62.86817248 | K26: =IF(OR($D$8>=4,$C$8<5),0,((($H$8-(6.755*LOG10($C$8))+(0.344*$D$8)-(10.324*$C26)-(6.466*LOG10($F$8))+4.254)/-0.068)+$K$24)) -> 97.86817248 | L26: =IF(OR($D$8>=4,$C$8<=5),0,IF($C$8=9,0,((($H$8-(6.755*LOG10($C$8))+(0.344*$D$8)-(10.324*$C26)-(6.466*LOG10($F$8))+4.254)/-0.068)+$L$24))) -> 102.8681725 | M26: =IF($D$8>=4,0,IF(AND($C$8>=5,$C$8<9),((($H$8-(6.755*LOG10($C$8))+(0.344*$D$8)-(10.324*$C26)-(6.466*LOG10($F$8))+4.254)/-0.068)+$M$24),0)) -> 87.86817248 | N26: =IF($D$8>=4,0,((($H$8-(6.755*LOG10($C$8))+(0.344*$D$8)-(10.324*$C26)-(6.466*LOG10($F$8))+4.254)/-0.068)+$N$24)) -> 77.86817248 | O26: =IF($D$8>=4,0,(IF(AND($C$8>=5,$C$8<9),((($H$8-(6.755*LOG10($C$8))+(0.344*$D$8)-(10.324*$C26)-(6.466*LOG10($F$8))+4.254)/-0.068)+$O$24),0))) -> 112.8681725 | P26: =IF($C$8<6,0,(IF($D$8>=4,0,(($H$8-(6.755*LOG10($C$8))+(0.344*$D$8)-(10.324*$C26)-(6.466*LOG10($F$8))+4.254)/-0.068)+$P$24))) -> 52.86817248 | Q26: 102.8681725 | R26: 102.8681725 | S26: 102.8681725
B27: 12 | C27: 0.109 | D27: 57.42287837 | E27: =IF(IFERROR(MATCH($L$4,'Reference Data'!$B$150:$B$256,0)<=11,0),0,(IF(AND($L$3="Circular",$L$4<60),0,((($H$8-(6.755*LOG10($C$8))+(0.344*$D$8)-(10.324*$C27)-(6.466*LOG10($F$8))+4.254)/-0.068)+$E$24)))) -> 77.42287837 | F27: 92.42287837 | G27: =IF(IFERROR(MATCH($L$4,'Reference Data'!$B$150:$B$256,0)<=11,0),0,(IF(AND($L$3="Circular",$L$4<60),0,IF(AND($C$8>=5,$C$8<9),((($H$8-(6.755*LOG10($C$8))+(0.344*$D$8)-(10.324*$C27)-(6.466*LOG10($F$8))+4.254)/-0.068)+$G$24),0)))) -> 112.4228784 | H27: 107.4228784 | I27: =IF(IFERROR(MATCH($L$4,'Reference Data'!$B$150:$B$256,0)<=11,0),0,(IF(AND($L$3="Circular",$L$4<60),0,(IF($D$8>=5,0,IF($C$8<=4,0,IF($C$8=9,0,IF($C$8<=3,0,((($H$8-(6.755*LOG10($C$8))+(0.344*$D$8)-(10.324*$C27)-(6.466*LOG10($F$8))+4.254)/-0.068)+$I$24))))))))) -> 127.4228784 | J27: 67.42287837 | K27: 102.4228784 | L27: 107.4228784 | M27: 92.42287837 | N27: 82.42287837 | O27: 117.4228784 | P27: 57.42287837 | Q27: =IF($D$8>=6,0,IF($C$8<=4,0,IF($C$8=9,0,((($H$8-(6.755*LOG10($C$8))+(0.344*$D$8)-(10.324*$C27)-(6.466*LOG10($F$8))+4.254)/-0.068)+$Q$24)))) -> 107.4228784 | R27: 107.4228784 | S27: 107.4228784
B28: 10 | C28: 0.138 | D28: 61.82576072 | E28: =IF(IFERROR(MATCH($L$4,'Reference Data'!$B$150:$B$256,0)<=11,0),0,(IF(AND($L$3="Circular",$L$4<60),0,((($H$8-(6.755*LOG10($C$8))+(0.344*$D$8)-(10.324*$C28)-(6.466*LOG10($F$8))+4.254)/-0.068)+$E$24)))) -> 81.82576072 | F28: 96.82576072 | G28: =IF(IFERROR(MATCH($L$4,'Reference Data'!$B$150:$B$256,0)<=11,0),0,(IF(AND($L$3="Circular",$L$4<60),0,IF(AND($C$8>=5,$C$8<9),((($H$8-(6.755*LOG10($C$8))+(0.344*$D$8)-(10.324*$C28)-(6.466*LOG10($F$8))+4.254)/-0.068)+$G$24),0)))) -> 116.8257607 | H28: 111.8257607 | I28: =IF(IFERROR(MATCH($L$4,'Reference Data'!$B$150:$B$256,0)<=11,0),0,(IF(AND($L$3="Circular",$L$4<60),0,(IF($D$8>=5,0,IF($C$8<=4,0,IF($C$8=9,0,IF($C$8<=3,0,((($H$8-(6.755*LOG10($C$8))+(0.344*$D$8)-(10.324*$C28)-(6.466*LOG10($F$8))+4.254)/-0.068)+$I$24))))))))) -> 131.8257607 | J28: 71.82576072 | K28: 106.8257607 | L28: 111.8257607 | M28: 96.82576072 | N28: 86.82576072 | O28: 121.8257607 | P28: 61.82576072 | Q28: =IF($D$8>=6,0,IF($C$8<=4,0,IF($C$8=9,0,((($H$8-(6.755*LOG10($C$8))+(0.344*$D$8)-(10.324*$C28)-(6.466*LOG10($F$8))+4.254)/-0.068)+$Q$24)))) -> 111.8257607 | R28: 111.8257607 | S28: 111.8257607
B29: 8 | C29: 0.168 | D29: 66.3804666 | E29: =IF(IFERROR(MATCH($L$4,'Reference Data'!$B$150:$B$256,0)<=11,0),0,(IF(AND($L$3="Circular",$L$4<60),0,((($H$8-(6.755*LOG10($C$8))+(0.344*$D$8)-(10.324*$C29)-(6.466*LOG10($F$8))+4.254)/-0.068)+$E$24)))) -> 86.3804666 | F29: 101.3804666 | G29: =IF(IFERROR(MATCH($L$4,'Reference Data'!$B$150:$B$256,0)<=11,0),0,(IF(AND($L$3="Circular",$L$4<60),0,IF(AND($C$8>=5,$C$8<9),((($H$8-(6.755*LOG10($C$8))+(0.344*$D$8)-(10.324*$C29)-(6.466*LOG10($F$8))+4.254)/-0.068)+$G$24),0)))) -> 121.3804666 | H29: 116.3804666 | I29: =IF(IFERROR(MATCH($L$4,'Reference Data'!$B$150:$B$256,0)<=11,0),0,(IF(AND($L$3="Circular",$L$4<60),0,(IF($D$8>=5,0,IF($C$8<=4,0,IF($C$8=9,0,IF($C$8<=3,0,((($H$8-(6.755*LOG10($C$8))+(0.344*$D$8)-(10.324*$C29)-(6.466*LOG10($F$8))+4.254)/-0.068)+$I$24))))))))) -> 136.3804666 | J29: 76.3804666 | K29: 111.3804666 | L29: 116.3804666 | M29: 101.3804666 | N29: 91.3804666 | O29: 126.3804666 | P29: 66.3804666 | Q29: 116.3804666 | R29: 116.3804666 | S29: 116.3804666
B30: 7 | C30: 0.188 | D30: 69.41693719 | E30: =IF(IFERROR(MATCH($L$4,'Reference Data'!$B$150:$B$256,0)<=11,0),0,(IF(AND($L$3="Circular",$L$4<60),0,((($H$8-(6.755*LOG10($C$8))+(0.344*$D$8)-(10.324*$C30)-(6.466*LOG10($F$8))+4.254)/-0.068)+$E$24)))) -> 89.41693719 | F30: 104.4169372 | G30: =IF(IFERROR(MATCH($L$4,'Reference Data'!$B$150:$B$256,0)<=11,0),0,(IF(AND($L$3="Circular",$L$4<60),0,IF(AND($C$8>=5,$C$8<9),((($H$8-(6.755*LOG10($C$8))+(0.344*$D$8)-(10.324*$C30)-(6.466*LOG10($F$8))+4.254)/-0.068)+$G$24),0)))) -> 124.4169372 | H30: 119.4169372 | I30: =IF(IFERROR(MATCH($L$4,'Reference Data'!$B$150:$B$256,0)<=11,0),0,(IF(AND($L$3="Circular",$L$4<60),0,(IF($D$8>=5,0,IF($C$8<=4,0,IF($C$8=9,0,IF($C$8<=3,0,((($H$8-(6.755*LOG10($C$8))+(0.344*$D$8)-(10.324*$C30)-(6.466*LOG10($F$8))+4.254)/-0.068)+$I$24))))))))) -> 139.4169372 | J30: 79.41693719 | K30: 114.4169372 | L30: 119.4169372 | M30: 104.4169372 | N30: 94.41693719 | O30: 129.4169372 | P30: 69.41693719 | Q30: 119.4169372 | R30: 119.4169372 | S30: 119.4169372
B31: 5 | C31: 0.218 | D31: 73.97164307 | E31: =IF(IFERROR(MATCH($L$4,'Reference Data'!$B$150:$B$256,0)<=11,0),0,(IF(AND($L$3="Circular",$L$4<60),0,((($H$8-(6.755*LOG10($C$8))+(0.344*$D$8)-(10.324*$C31)-(6.466*LOG10($F$8))+4.254)/-0.068)+$E$24)))) -> 93.97164307 | F31: 108.9716431 | G31: =IF(IFERROR(MATCH($L$4,'Reference Data'!$B$150:$B$256,0)<=11,0),0,(IF(AND($L$3="Circular",$L$4<60),0,IF(AND($C$8>=5,$C$8<9),((($H$8-(6.755*LOG10($C$8))+(0.344*$D$8)-(10.324*$C31)-(6.466*LOG10($F$8))+4.254)/-0.068)+$G$24),0)))) -> 128.9716431 | H31: 123.9716431 | I31: =IF(IFERROR(MATCH($L$4,'Reference Data'!$B$150:$B$256,0)<=11,0),0,(IF(AND($L$3="Circular",$L$4<60),0,(IF($D$8>=5,0,IF($C$8<=4,0,IF($C$8=9,0,IF($C$8<=3,0,((($H$8-(6.755*LOG10($C$8))+(0.344*$D$8)-(10.324*$C31)-(6.466*LOG10($F$8))+4.254)/-0.068)+$I$24))))))))) -> 143.9716431 | J31: 83.97164307 | K31: 118.9716431 | L31: 123.9716431 | M31: 108.9716431 | N31: 98.97164307 | O31: 133.9716431 | P31: 73.97164307 | Q31: 123.9716431 | R31: 123.9716431 | S31: 123.9716431
B32: 3 | C32: 0.249 | D32: 78.67817248 | E32: =IF(IFERROR(MATCH($L$4,'Reference Data'!$B$150:$B$256,0)<=11,0),0,(IF(AND($L$3="Circular",$L$4<60),0,((($H$8-(6.755*LOG10($C$8))+(0.344*$D$8)-(10.324*$C32)-(6.466*LOG10($F$8))+4.254)/-0.068)+$E$24)))) -> 98.67817248 | F32: 113.6781725 | G32: =IF(IFERROR(MATCH($L$4,'Reference Data'!$B$150:$B$256,0)<=11,0),0,(IF(AND($L$3="Circular",$L$4<60),0,IF(AND($C$8>=5,$C$8<9),((($H$8-(6.755*LOG10($C$8))+(0.344*$D$8)-(10.324*$C32)-(6.466*LOG10($F$8))+4.254)/-0.068)+$G$24),0)))) -> 133.6781725 | H32: 128.6781725 | I32: =IF(IFERROR(MATCH($L$4,'Reference Data'!$B$150:$B$256,0)<=11,0),0,(IF(AND($L$3="Circular",$L$4<60),0,(IF($D$8>=5,0,IF($C$8<=4,0,IF($C$8=9,0,IF($C$8<=3,0,((($H$8-(6.755*LOG10($C$8))+(0.344*$D$8)-(10.324*$C32)-(6.466*LOG10($F$8))+4.254)/-0.068)+$I$24))))))))) -> 148.6781725 | J32: 88.67817248 | K32: 123.6781725 | L32: 128.6781725 | M32: 113.6781725 | N32: 103.6781725 | O32: 138.6781725 | P32: 78.67817248 | Q32: 128.6781725 | R32: 128.6781725 | S32: 128.6781725
B33: 1 | C33: 0.28 | D33: 83.3847019 | E33: =IF(IFERROR(MATCH($L$4,'Reference Data'!$B$150:$B$256,0)<=11,0),0,(IF(AND($L$3="Circular",$L$4<60),0,((($H$8-(6.755*LOG10($C$8))+(0.344*$D$8)-(10.324*$C33)-(6.466*LOG10($F$8))+4.254)/-0.068)+$E$24)))) -> 103.3847019 | F33: 118.3847019 | G33: =IF(IFERROR(MATCH($L$4,'Reference Data'!$B$150:$B$256,0)<=11,0),0,(IF(AND($L$3="Circular",$L$4<60),0,IF(AND($C$8>=5,$C$8<9),((($H$8-(6.755*LOG10($C$8))+(0.344*$D$8)-(10.324*$C33)-(6.466*LOG10($F$8))+4.254)/-0.068)+$G$24),0)))) -> 138.3847019 | H33: 133.3847019 | I33: =IF(IFERROR(MATCH($L$4,'Reference Data'!$B$150:$B$256,0)<=11,0),0,(IF(AND($L$3="Circular",$L$4<60),0,(IF($D$8>=5,0,IF($C$8<=4,0,IF($C$8=9,0,IF($C$8<=3,0,((($H$8-(6.755*LOG10($C$8))+(0.344*$D$8)-(10.324*$C33)-(6.466*LOG10($F$8))+4.254)/-0.068)+$I$24))))))))) -> 153.3847019 | J33: 93.3847019 | K33: 128.3847019 | L33: 133.3847019 | M33: 118.3847019 | N33: 108.3847019 | O33: 143.3847019 | P33: 83.3847019 | Q33: 133.3847019 | R33: 133.3847019 | S33: 133.3847019
B34: Casing | C34: 0.5 | T34: =IF($C$8<5,0,(($H$8-(6.755*LOG10($C$8))+(0.344*$D$8)-(10.324*$C34)-(6.466*LOG10($F$8))+4.254)/-0.068)+$T$24) -> 116.7858784
B36: Concrete Conduit Durability Results
B37: Material | D37: **706.01 Non-reinforced Concrete Pipe | E37: **706.02 Reinforced Concrete Circular Pipe | F37: **706.03 Reinforced Concrete Pipe, Epoxy Coated | G37: **706.04 Reinforced Concrete Elliptical Culvert, Storm Drain, and Sewer Pipe | H37: **706.05 Precast Reinforced Concrete Box Sections | I37: 706.08 Clay Drain Tile | M37: Concrete Options: 66" Type A Conduit, 706.02
B38: Conduit Use and Shape | D38: Culvert or Storm Sewer -Round | E38: Culvet or Storm Sewer -Round | F38: Culvert or Storm Sewer -Round or Elliptical | G38: Culvert or Storm Sewer -Elliptical | H38: Culvert or Storm Sewer -Box | I38: Culvert or Storm Sewer - Round
D39: =IF(AND($L$3="Circular",$L$4<=36),($H$8-10.689*LOG10($C$8)+(0.389*$D$8)+(4.445*(1-$G$8))-4.169)/-0.026,0) -> 0 | E39: =IF(L3="Circular",($H$8-10.689*LOG10($C$8)+(0.389*$D$8)+(4.445*(1-$G$8))-4.169)/-0.026,0) -> 172.3692003 | F39: =IF(OR(L3="Circular",L3="Elliptical"),IF($D$39<$I$8,"epoxy required",IF($C$8<5,"epoxy required","epoxy not required")),0) -> epoxy required | G39: =IF(L3="Elliptical",($H$8-10.689*LOG10($C$8)+(0.389*$D$8)+(4.445*(1-$G$8))-4.169)/-0.026,0) -> 0 | H39: =IF(L3="Box",($H$8-10.689*LOG10($C$8)+(0.389*$D$8)+(4.445*(1-$G$8))-4.169)/-0.026,0) -> 0 | I39: =IF(AND($L$3="Circular",$L$4<=48),$I$8,0) -> 0
B41: Plastic Conduit Durability Results
B42: Material | D42: 707.33 Corrugated Polyethylene Smooth Lined Pipe | E42: 707.34 Polyethylene Plastic Pipe Based on Outside Diameter (OD) | F42: 707.35 Polyethylene Profile Wall Pipe | G42: 707.42 Polyvinyl Chloride Corrugated Smooth Interior Pipe | H42: 707.43 Polyvinyl Chloride Profile Wall Pipe | I42: 707.45 Polyvinyl Chloride Solid Wall Pipe | J42: 707.46 Polyvinyl Chloride Drain Waste and Vent Pipe | K42: 707.47 ABS and Polyvinyl Chloride Composite Pipe | L42: 707.48 Polyvinyl Chloride Large-Diameter Solid Wall Pipe | M42: 707.65 Polypropylene corrugated Double Wall Pipe | N42: 707.69 Polypropylene Triple Wall Pipe | O42: 707.75 Glass-Fiber-Reinforced Polymer Mortar Pipe | P42: 748.02 Polyvinyl Chloride (PVC) Pipe, Joints, and Fittings | Q42: SS938 Steel Reinforced Thermoplastic Ribbed Pipe
B43: Conduit Use and Shape | D43: Culvert, Storm Sewer, or Liner Pipe - Round | E43: Culvert, Storm Sewer, or Liner Pipe - Round | F43: Culvert, Storm Sewer, or Liner Pipe - Round | G43: Storm Sewer or Liner Pipe - Round | H43: Storm Sewer or Liner Pipe - Round | I43: Storm Sewer - Round | J43: Storm Sewer - Round | K43: Storm Sewer - Round | L43: Storm Sewer - Round | M43: Culvert or Storm Sewer - Round | N43: Culvert or Storm Sewer - Round | O43: Culvert, Storm Sewer, or Liner Pipe - Round | P43: Storm Sewer - Round | Q43: Culvert or Liner Pipe - Round
D44: =IF(AND($L$3="Circular",$L$4<=60),$I$8,0) -> 0 | E44: =IF(AND($L$3="Circular",$L$4<=60),$I$8,0) -> 0 | F44: =IF(AND($L$3="Circular",$L$4<=132),$I$8,0) -> 75 | G44: =IF(AND($L$3="Circular",$L$4<=48),$I$8,0) -> 0 | H44: =IF(AND($L$3="Circular",$L$4<=48),$I$8,0) -> 0 | I44: =IF(AND($L$3="Circular",$L$4<=15),$I$8,0) -> 0 | J44: =IF(AND($L$3="Circular",$L$4<=24),$I$8,0) -> 0 | K44: =IF(AND($L$3="Circular",$L$4<=15),$I$8,0) -> 0 | L44: =IF(AND($L$3="Circular",$L$4>=18,$L$4<=60),$I$8,0) -> 0 | M44: =IF(AND($L$3="Circular",$L$4<=60),$I$8,0) -> 0 | N44: =IF(AND($L$3="Circular",$L$4<=60),$I$8,0) -> 0 | O44: =IF(AND($L$3="Circular",$L$4<=156),$I$8,0) -> 75 | P44: =IF(AND($L$3="Circular",$L$4<=60),$I$8,0) -> 0 | Q44: =IF(AND($L$3="Circular",$L$4>=30,$L$4<=120),$I$8,0) -> 75
M47: Plastic Options: 66" Type A Conduit, 707.35, 707.75, SS938
D52: Final Pay Item for Plans
D53: 66" Type A Conduit, 707.02 (0.109) with CFP, 707.02 (0.064) Aluminized, 707.04 (0.064), 706.02, 707.35, 707.75, SS938
C58: Notes: | L58: Constants
D59: Many metal options are eliminated when abrasion level equals 4 or greater | M59: Protective Coating Constants-Initial Service Life (years)
D60: Aluminum is only available between pH levels ranging from 5.0 to less than 9.0 | L60: Concrete Invert Paving= | N60: 20
D61: Alumized protective coating is 0 years when pH levels are outside of allowable for Aluminum | L61: Aluminized= | N61: 35
D62: Polymeric coated is only available for pH ranges greater than 5.0 and less than 9.0 | L62: Aluminized Spiral Rib= | N62: 35
D63: Options were emiminated when the NCSPA online Service Life Calculator did not recommend option; typically due to abrasive conditions or pH limitations | L63: Polymeric= | N63: 50
D64: Epoxy is required on all concrete surfaces when pH<5 | L64: Bituminous coated w/ bitum. paved invert= | N64: 10
D65: ** Smooth lined conduit | L65: Bituminous lined = | N65: 25
D66: ***Minimum gauges set per industry comments; see Reference Data | L66: Galvanized= | N66: 0
D67: Provide concrete field paving on corrugated metal conduits 60” or larger where the invert is always submerged due to tail water conditions from a body of water
D68: Designer is responsible to ensure the required gage thickness is available for the given pipe size

Sheet Reference Data
A2: Gauge | B2: Thickness (inches)
A3: 16 | B3: 0.064
A4: 14 | B4: 0.079
A5: 12 | B5: 0.109
A6: 10 | B6: 0.138
A7: 8 | B7: 0.168
A8: 7 | B8: 0.188
A9: 5 | B9: 0.218
A10: 3 | B10: 0.249
A11: 1 | B11: 0.28
A12: Casing | B12: 0.5
A18: Abrasion Level | C18: Conduit Shapes
A19: 1 | C19: Circular
A20: 2 | C20: Pipe Arch
A21: 3 | C21: Elliptical
A22: 4 | C22: Box
A23: 5
A24: 6
A32: ***Minimum gauges set per Industry Comments:
B33: Abrasion Level 4 | C33: Abrasion Level 5 | D33: Abrasion Level 6
A34: Aluminized with concrete invert paving
A35: Service Life Required=75 | C35: 12 | D35: 10
A37: Aluminized bituminous coated w/ bitum. paved invert
A38: Service Life Required=75 | B38: 14 | C38: 12 | D38: 10
A40: Polymeric coated with concrete invert paving
A41: Service Life Required=75 | C41: 14 | D41: 12
B100: Galvanized, T2, and Poly Coated Circular Shape | G100: Aluminum Circular Shape
B101: Spans Available (inches) | C101: Max Gauge or Thickness (inches) | G101: Spans Available (inches) | H101: Max Gauge or Thickness (inches)
B102: 12 | C102: 1/4 or 1/2 | G102: 12 | H102: 1/4 or 1/2
B103: 15 | C103: 1/4 or 1/2 | G103: 15 | H103: 1/4 or 1/2
B104: 18 | C104: 1/4 or 1/2 | G104: 18 | H104: 1/4 or 1/2
B105: 21 | C105: 1/4 or 1/2 | G105: 21 | H105: 1/4 or 1/2
B106: 24 | C106: 1/4 or 1/2 | G106: 24 | H106: 1/4 or 1/2
B107: 27 | C107: 1/4 or 1/2 | G107: 27 | H107: 1/4 or 1/2
B108: 30 | C108: 1/4 or 1/2 | G108: 30 | H108: 1/4 or 1/2
B109: 36 | C109: 1/4 or 1/2 | D109: 1 | G109: 36 | H109: 1/4 or 1/2 | I109: 1
B110: 42 | C110: 1/4 or 1/2 | D110: 1 | G110: 42 | H110: 1/4 or 1/2 | I110: 1
B111: 48 | C111: 1/4 or 1/2 | D111: 1 | G111: 48 | H111: 1/4 or 1/2 | I111: 1
B112: 54 | C112: 1/4 or 1/2 | D112: 1 | G112: 54 | H112: 1/4 or 1/2 | I112: 1
B113: 60 | C113: 1/4 or 1/2 | D113: 1 | E113: 2 | G113: 60 | H113: 1/4 or 1/2 | I113: 1 | J113: 2
B114: 66 | C114: 1/4 or 1/2 | D114: 1 | E114: 2 | G114: 66 | H114: 1/4 or 1/2 | I114: 1 | J114: 2
B115: 72 | C115: 1/4 or 1/2 | D115: 1 | E115: 2 | G115: 72 | H115: 1/4 or 1/2 | I115: 1 | J115: 2
B116: 78 | C116: 1/4 or 1/2 | D116: 1 | E116: 2 | G116: 78 | J116: 2
B117: 84 | C117: 1/4 or 1/2 | D117: 1 | E117: 2 | G117: 84 | J117: 2
B118: 90 | D118: 1 | E118: 2 | G118: 90 | J118: 2
B119: 96 | D119: 1 | E119: 2 | G119: 96 | J119: 2
B120: 102 | D120: 1 | E120: 2 | G120: 102 | J120: 2
B121: 108 | D121: 1 | E121: 2 | G121: 108 | J121: 2
B122: 114 | D122: 1 | E122: 2 | G122: 114 | J122: 2
B123: 120 | D123: 1 | E123: 2 | G123: 120 | J123: 2
B124: 126 | E124: 2 | G124: 126 | J124: 2
B125: 132 | E125: 2 | G125: 132 | J125: 2
B126: 138 | E126: 2 | G126: 138 | J126: 2
B127: 144 | E127: 2 | G127: 144 | J127: 2
B128: 150 | E128: 2 | G128: 150 | J128: 2
B129: 156 | E129: 2 | G129: 156 | J129: 2
B130: 162 | E130: 2 | G130: 162 | J130: 2
B131: 168 | E131: 2 | G131: 168 | J131: 2
B132: 174 | E132: 2 | G132: 174 | J132: 2
B133: 180 | E133: 2 | G133: 180 | J133: 2
B134: 186 | E134: 2 | G134: 186 | J134: 2
B135: 192 | E135: 2 | G135: 192 | J135: 2
B136: 198 | E136: 2 | G136: 198 | J136: 2
B137: 204 | E137: 2 | G137: 204 | J137: 2
B138: 210 | E138: 2 | G138: 210 | J138: 2
B139: 216 | E139: 2 | G139: 216 | J139: 2
B140: 222 | E140: 2 | G140: 222 | J140: 2
B141: 228 | E141: 2 | G141: 228 | J141: 2
B142: 234 | E142: 2
B143: 240 | E143: 2
B144: 246 | E144: 2
B145: 252 | E145: 2
B148: Pipe Arch Shape
B149: Spans x Rise Available (inches) | C149: Galvanized Corrugation Depth (inches) | F149: Aluminum Corrugation Depth (inches) | I149: Spiral Rib
B150: 17 x 13 | C150: 1/4 or 1/2 | F150: 1/2
B151: 20 x 16 | I151: 1/4
B152: 21 x 15 | C152: 1/4 or 1/2 | F152: 1/2
B153: 23 x 19 | I153: 1/4
B154: 24 x 18 | C154: 1/4 or 1/2 | F154: 1/2
B155: 27 x 21 | I155: 1/4
B156: 28 x 20 | C156: 1/4 or 1/2 | F156: 1/2
B157: 33 x 26 | I157: 1/4
B158: 35 x 24 | C158: 1/4 or 1/2 | F158: 1/2
B159: 40 x 31 | D159: 1 | I159: 1/4
B160: 42 x 29 | C160: 1/4 or 1/2 | F160: 1/2
B161: 46 x 36 | D161: 1 | I161: 1/4
B162: 49 x 33 | C162: 1/4 or 1/2 | F162: 1/2
B163: 53 x 41 | D163: 1 | G163: 1 | I163: 1/4
B164: 57 x 38 | C164: 1/4 or 1/2 | F164: 1/2
B165: 60 x 46 | D165: 1 | G165: 1 | I165: 1/4
B166: 64 x 43 | C166: 1/4 or 1/2 | F166: 1/2
B167: 66 x 51 | D167: 1 | G167: 1 | I167: 1/4
B168: 71 x 47 | C168: 1/4 or 1/2 | F168: 1/2
B169: 73 x 55 | D169: 1 | E169: 2 | G169: 1 | I169: 1/4
B170: 76 x 57 | E170: 2
B171: 77 x 52 | C171: 1/4 or 1/2
B172: 79 x 68 | H172: 2
B173: 81 x 59 | D173: 1 | E173: 2 | G173: 1 | I173: 1/4
B174: 84 x 61 | E174: 2
B175: 83 x 57 | C175: 1/4 or 1/2
B176: 83 x 69 | H176: 2
B177: 87 x 63 | D177: 1 | E177: 2 | G177: 1
B178: 87 x 71 | H178: 2
B179: 92 x 65 | E179: 2
B180: 93 x 72 | H180: 2
B181: 95 x 67 | D181: 1 | E181: 2 | G181: 1
B182: 97x 73 | H182: 2
B183: 98 x 69 | E183: 2
B184: 101 x 75 | H184: 2
B185: 103 x 71 | D185: 1 | E185: 2 | G185: 1
B186: 106 x 72 | E186: 2
B187: 106 x 76 | H187: 2
B188: 111 x 77 | H188: 2
B189: 112 x 75 | D189: 1 | E189: 2 | G189: 1
B190: 114 x 77 | E190: 2
B191: 115 x 78 | H191: 2
B192: 117 x 79 | D192: 1 | G192: 1
B193: 119 x 80 | H193: 2
B194: 123 x 81 | E194: 2 | H194: 2
B195: 128 x 83 | D195: 1 | E195: 2
B196: 129 x 82 | H196: 2
B197: 131 x 85 | E197: 2
B198: 133 x 84 | H198: 2
B199: 137 x 85 | H199: 2
B200: 137 x 87 | D200: 1 | E200: 2
B201: 139 x 89 | E201: 2
B202: 141 x 86 | H202: 2
B203: 142 x 91 | D203: 1 | E203: 2
B204: 147 x 87 | H204: 2
B205: 148 x 93 | E205: 2
B206: 150 x 95 | E206: 2
B207: 151 x 89 | H207: 2
B208: 152 x 97 | E208: 2
B209: 154 x 100 | E209: 2
B210: 155 x 90 | H210: 2
B211: 157 x 98 | H211: 2
B212: 159 x 112 | E212: 2
B213: 161 x 101 | E213: 2
B214: 162 x 114 | E214: 2
B215: 167 x 101 | H215: 2
B216: 167 x 103 | E216: 2
B217: 167 x 113 | H217: 2
B218: 168 x 104 | H218: 2
B219: 168 x 105 | E219: 2
B220: 168 x 116 | E220: 2
B221: 170 x 118 | E221: 2
B222: 171 x 107 | E222: 2
B223: 171 x 115 | H223: 2
B224: 173 x 120 | E224: 2
B225: 176 x 116 | H225: 2
B226: 178 x 109 | E226: 2
B227: 179 x 118 | H227: 2
B228: 179 x 122 | E228: 2
B229: 184 x 111 | E229: 2
B230: 184 x 120 | H230: 2
B231: 184 x 124 | E231: 2
B232: 186 x 113 | E232: 2
B233: 187 x 122 | H233: 2
B234: 187 x 126 | E234: 2
B235: 188 x 115 | E235: 2
B236: 190 x 118 | E236: 2
B237: 190 x 128 | E237: 2
B238: 193 x 124 | H238: 2
B239: 195 x 130 | E239: 2
B240: 196 x 126 | H240: 2
B241: 197 x 119 | E241: 2
B242: 198 x 132 | E242: 2
B243: 199 x 121 | E243: 2
B244: 204 x 134 | E244: 2
B245: 206 x 136 | E245: 2
B246: 209 x 138 | E246: 2
B247: 215 x 140 | E247: 2
B248: 217 x 142 | E248: 2
B249: 223 x 144 | E249: 2
B250: 225 x 146 | E250: 2
B251: 231 x 148 | E251: 2
B252: 234 x 150 | E252: 2
B253: 236 x 152 | E253: 2
B254: 239 x 154 | E254: 2
B255: 245 x 156 | E255: 2
B256: 247 x 158 | E256: 2

Sheet ODOT Pipe Charts

Sheet Revisions
C2: For January 2020
B3: 1 | C3: For Steel Pipe, added Steel Pipe Charts with gauge thickness information, added data to the Reference Data Tab for Steel Pipe, added min and max gauge to the Durability Design Tab
B4: 2 | C4: Restricted availability of concrete field paving to pipe sizes 60" or greater.
B5: 3 | C5: Example Calculation tab included. Example has notes included when the mouse is hovered over the material options.
B6: 4 | C6: Conduit material photos were added to a new tab
B7: 5 | C7: Improved Durability Design Calculations to remove options that are not commercial available
C9: For July 2019
B10: 1 | C10: Protective Coatings Add-On Service Life-
C11: Changed name of 'Bituminous Lined and Invert Paved' to 'Bituminous Coated w/ bitum. Paved invert'; changed add-on service life to 10 yrs from 25 yrs
C12: Changed add-on service life of 'Bituminous Lined' to 25 yrs from 10 yrs
B13: 2 | C13: Added a note stating that the designer is responsible to ensure the required gage thickness is available for the given pipe size
B14: 3 | C14: Corrected 707.13 & 707.14 conduit use to storm sewer instead of culvert
B15: 4 | C15: Changed minimum storm sewer abrasion level to 1 from 2 and assumed Ph to 7 instead of using L&D figure 1002-2. Noted in instructions.
B16: 5 | C16: Added ODOT Pipe Charts as a reference
B17: 6 | C17: Added 707.11 Polymer Precoated Spiral Rib Steel for use as a storm sewer or liner pipe
B18: 7 | C18: Revised 707.12 Aluminum Coated Spiral Rib Steel for use as a liner pipe only
C20: For July 2021
B21: 1 | C21: Removed mention of 75 yr. service life for polymeric coating pH range under Durability Design Notes on Instructions tab
B22: 2 | C22: Removed old references to storm sewer options and corrected allowable Abrasion Level to less than 4 in service life calculations for 707.04, 707.05 or 707.07 galvanized and aluminized, and 707.11
B23: 3 | C23: Updated Example to match the changes to the Durability Design tab
B24: 4 | C24: Added the metal pipe gage thickness to metal options in the Example

Sheet Steel Pipe Charts
H1: Revised July 2014 | U1: Revised July 2014 | AG1: Revised July 2014 | AP1: Revised January 2013 | AY1: Revised January 2013 | BK1: Revised January 2013 | CJ1: MINIMUM HEIGHT OF COVER TABLE 5 FOR CORRUGATED ALUMINUM SPIRAL RIB PIPE | CQ1: 1008-19 | DF1: MINIMUM HEIGHT OF COVER TABLE 4 707.23 STRUCTURAL PLATE CORRUGATED ALUMINUM PIPE ARCHES | DJ1: 1008-18
A2: MINIMUM HEIGHT OF COVER TABLE 1 | H2: 1008-1 | O2: MINIMUM HEIGHT OF COVER TABLE 2 CORRUGATED STEEL PIPE ARCHES | U2: 1008-2 | AB2: MINIMUM HEIGHT OF COVER TABLE 3 707.03 STRUCTURAL PLATE CORRUGATED STEEL PIPE | AG2: 1008-3 | AL2: MINIMUM HEIGHT OF COVER TABLE 4 707.03 STRUCTURAL PLATE CORRUGATED STEEL PIPE ARCHES | AP2: 1008-4 | AU2: MINIMUM HEIGHT OF COVER TABLE 5 707.03 STRUCTURAL PLATE CORRUGATED STEEL PIPE ARCHES | AY2: 1008-5 | BD2: MINIMUM HEIGHT OF COVER TABLE 6 FOR CORRUGATED STEEL SPIRAL RIB PIPE | BK2: 1008-6 | BR2: MINIMUM HEIGHT OF COVER TABLE 1 | BW2: 1008-15 | CA2: MINIMUM HEIGHT OF COVER TABLE 2 | CF2: 1008-16 | CV2: MINIMUM HEIGHT OF COVER TABLE 3 707.23 STRUCTURAL PLATE CORRUGATED ALUMINUM PIPE | DA2: 1008-17
CQ3: Reference Section | DJ3: Reference Section
A4: CORRUGATED STEEL PIPE | H4: Reference Section | U4: Reference Section | AG4: Reference Section | AP4: Reference Section | AY4: Reference Section | BK4: Reference Section | BR4: CORRUGATED ALUMINUM PIPE | BW4: Reference Section | CA4: CORRUGATED ALUMINUM PIPE ARCHES | CF4: Reference Section | CQ4: 1008.1.2 | DA4: Reference Section | DJ4: 1008.1.2
H5: 1008.1.2 | U5: 1008.1.2 | AG5: 1008.1.2 | AP5: 1008.1.2 | AY5: 1008.1.2 | BK5: 1008.1.2 | BW5: 1008.1.2 | CF5: 1008.1.2 | DA5: 1008.1.2
CM6: Pipe | CR6: Min Gauge Thickness | CS6: Maximum Gauge | DG6: Pipe | DK6: Min Gauge Thickness | DL6: Maximum Thickness (inches)
B7: Pipe | C7: Designation | D7: HEIGHT OF COVER TABLE 1 | P7: Pipe | Q7: Designation | R7: HEIGHT OF COVER TABLE 2 | AC7: HEIGHT OF COVER TABLE 3 | AM7: HEIGHT OF COVER TABLE 4 | AV7: HEIGHT OF COVER TABLE 5 | BE7: Pipe | BF7: Designation | BG7: HEIGHT OF COVER TABLE 6 | BT7: Pipe | BV7: Min Gauge Thickness | BW7: Maximum Gage | CC7: Pipe | CE7: Min Gauge Thickness | CF7: Maximum Gauge | CM7: Diameter | CN7: Minimum Cover | DG7: Dimensions | DH7: Minimum Cover
D8: Corrugated Steel Pipe | I8: Min Gauge Thickness | J8: Max Gauge thickness | R8: Corrugated Steel Pipe Arches | V8: Min Gauge Thickness | W8: Max Gauge thickness | AC8: 707.03 Structural Plate Corrugated Steel Pipe | AH8: Min Gauge Thickness | AM8: 707.03 Structural Plate Corrugated Steel Pipe (18-inch Corner Radius) | AQ8: Min Gauge Thickness | AV8: 707.03 Structural Plate Corrugated Steel Pipe (31-inch Corner Radius) | AZ8: Min Gauge Thickness | BG8: Corrugated Steel Spiral Rib Pipe | BL8: Min Gauge Thickness | BM8: Maximum Gage Thickness | BT8: Diameter | BU8: Minimum Cover | CC8: Diameter | CD8: Minimum Cover | CW8: Pipe | CX8: Pipe | DB8: Min Thickness | DC8: Maximum Thickness (inches) | DF8: Span X Rise | DG8: Span X Rise
D9: Pipe | J9: Maximum Gauge GALV | K9: Maximum Gauge T2 | L9: Maximum Gauge POLY | R9: Pipe Dimentions | W9: Maximum Gauge GALV | X9: Maximum Gauge T2 | Y9: Maximum Gauge POLY | AC9: Pipe | AD9: Pipe | AI9: Maximum Gauge | AM9: Pipe | AR9: Maximum Gauge | AV9: Pipe | BA9: Maximum Gauge | BG9: Pipe | BM9: Maximum Gauge GALV | BN9: Maximum Gauge T2 | BO9: Maximum Gauge POLY | BR9: 707.21 (2 2/3" x 1/2" Corrugations) | CA9: 707.21 (2 2/3" x 1/2" Corrugations) | CM9: (inches) | CN9: (inches) | CW9: Diameter | CX9: Diameter | CY9: Minimum Cover | DF9: inch-inch | DG9: (feet-inches) | DH9: (inches)
D10: Diameter | E10: Minimum Cover | R10: Span X Rise | S10: Minimum Cover | AC10: Diameter | AD10: Diameter | AE10: Minimum Cover | AM10: Dimentions | AN10: Minimum Cover | AV10: Dimentions | AW10: Minimum Cover | BG10: Diameter | BH10: Minimum Cover | BT10: (inches) | BU10: (inches) | CC10: (inches) | CD10: (inches) | CK10: 707.24 | CL10: (3/4" x 7 1/2" Corrugations) | CM10: 18 | CN10: 12 | CR10: 16 | CS10: 14 | DF10: 79 x 68 | DG10: 6-'7" x 5-8" | DH10: 21 | DK10: 0.1 | DL10: 0.25
AL11: Span X Rise | AM11: Span X Rise | AU11: Span X Rise | AV11: Span X Rise | BT11: 12 | BU11: 12 | BV11: 16 | BW11: 12 | CM11: 21 | CN11: 12 | CR11: 16 | CS11: 14 | CW11: (inches) | CX11: (feet-inches) | CY11: (inches) | DF11: 83 x 69 | DG11: 6'-11" x 5'-9" | DH11: 21 | DK11: 0.1 | DL11: 0.25
D12: (inches) | E12: (inches) | R12: (inches) | S12: (inches) | AC12: (inches) | AD12: (feet-inches) | AE12: (inches) | AL12: inch-inch | AM12: (feet-inches) | AN12: (inches) | AU12: inch-inch | AV12: (feet-inches) | AW12: (inches) | BG12: (inches) | BH12: (inches) | BT12: 15 | BU12: 12 | BV12: 16 | BW12: 12 | CC12: 17 X 13 | CD12: 12 | CE12: 16 | CF12: 12 | CM12: 24 | CN12: 12 | CR12: 16 | CS12: 12 | CW12: 60 | CX12: 5'0" | CY12: 15 | DB12: 0.1 | DC12: 0.25 | DF12: 87 x 71 | DG12: 7'-3" x 5'-11" | DH12: 21 | DK12: 0.1 | DL12: 0.25
B13: 707.01, 707.04, 707.05, 707.11 and 707.13 (2 2/3" x 1/2" Corrugations) | D13: 12 | E13: 12 | I13: 16 | J13: 14 | K13: 14 | L13: 14 | P13: 707.01, 707.04, 707.05, 707.11 and 707.13 (2 2/3" x 1/2" Corrugations) | R13: 17 x 13 | S13: 12 | V13: 16 | W13: 14 | X13: 14 | Y13: 14 | AC13: 60 | AD13: 5'0" | AE13: 12 | AH13: 12 | AI13: 1 | AL13: 73 x 55 | AM13: 6'1" x 4'7" | AN13: 18 | AQ13: 12 | AR13: 1 | AU13: 159 x 112 | AV13: 13'3" x 9'4" | AW13: 24 | AZ13: 12 | BA13: 1 | BE13: 707.12 | BF13: (3/4" x 7 1/2" Corrugations) | BG13: 18 | BH13: 12 | BL13: 16 | BM13: 14 | BN13: 14 | BO13: 14 | BT13: 18 | BU13: 12 | BV13: 16 | BW13: 12 | CC13: 21 X 15 | CD13: 12 | CE13: 16 | CF13: 12 | CM13: 30 | CN13: 15 | CR13: 16 | CS13: 12 | CW13: 66 | CX13: 5'6" | CY13: 18 | DB13: 0.1 | DC13: 0.25 | DF13: 93 x 72 | DG13: 7'-9" X 6'-0" | DH13: 24 | DK13: 0.1 | DL13: 0.25
D14: 15 | E14: 12 | I14: 16 | J14: 14 | K14: 14 | L14: 14 | R14: 21 x 15 | S14: 12 | V14: 16 | W14: 14 | X14: 14 | Y14: 14 | AC14: 66 | AD14: 5'6" | AE14: 12 | AH14: 12 | AI14: 1 | AL14: 76 x 57 | AM14: 6'4" x 4'9" | AN14: 18 | AQ14: 12 | AR14: 1 | AU14: 162 x 114 | AV14: 13'6" x 9'6" | AW14: 24 | AZ14: 12 | BA14: 1 | BG14: 21 | BH14: 12 | BL14: 16 | BM14: 12 | BN14: 12 | BO14: 12 | BT14: 21 | BU14: 12 | BV14: 16 | BW14: 12 | CC14: 24 X 18 | CD14: 12 | CE14: 16 | CF14: 12 | CM14: 36 | CN14: 15 | CR14: 14 | CS14: 12 | CW14: 72 | CX14: 6'0" | CY14: 24 | DB14: 0.1 | DC14: 0.25 | DF14: 97x 73 | DG14: 8'-1"X 6'-1" | DH14: 24 | DK14: 0.1 | DL14: 0.25
D15: 18 | E15: 12 | I15: 16 | J15: 14 | K15: 14 | L15: 14 | R15: 24 x 18 | S15: 12 | V15: 16 | W15: 12 | X15: 12 | Y15: 12 | AC15: 72 | AD15: 6'0" | AE15: 12 | AH15: 12 | AI15: 1 | AL15: 81 x 59 | AM15: 6'9 x 4'11" | AN15: 18 | AQ15: 12 | AR15: 1 | AU15: 168 x 116 | AV15: 14'0" x 9'8" | AW15: 24 | AZ15: 12 | BA15: 1 | BG15: 24 | BH15: 12 | BL15: 16 | BM15: 12 | BN15: 12 | BO15: 12 | BT15: 24 | BU15: 12 | BV15: 16 | BW15: 10 | CC15: 28 X 20 | CD15: 12 | CE15: 14 | CF15: 10 | CM15: 42 | CN15: 15 | CR15: 12 | CS15: 12 | CW15: 78 | CX15: 6'6" | CY15: 24 | DB15: 0.1 | DC15: 0.25 | DF15: 101 x 75 | DG15: 8'-5" x 6'-3" | DH15: 24 | DK15: 0.1 | DL15: 0.25
D16: 21 | E16: 12 | I16: 16 | J16: 12 | K16: 12 | L16: 12 | R16: 28 x 20 | S16: 12 | V16: 16 | W16: 12 | X16: 12 | Y16: 12 | AC16: 78 | AD16: 6'6" | AE16: 12 | AH16: 12 | AI16: 1 | AL16: 84 x 61 | AM16: 7'0" x 5'1" | AN16: 18 | AQ16: 12 | AR16: 1 | AU16: 170 x 118 | AV16: 14'2" x 9'10" | AW16: 24 | AZ16: 12 | BA16: 1 | BG16: 30 | BH16: 12 | BL16: 16 | BM16: 12 | BN16: 12 | BO16: 12 | BT16: 27 | BU16: 12 | BV16: 14 | BW16: 10 | CC16: 35 X 24 | CD16: 12 | CE16: 14 | CF16: 10 | CM16: 48 | CN16: 18 | CR16: 12 | CS16: 10 | CW16: 84 | CX16: 7'0" | CY16: 24 | DB16: 0.1 | DC16: 0.25 | DF16: 106 x 76 | DG16: 8'-10" x 6'-4" | DH16: 27 | DK16: 0.1 | DL16: 0.25
D17: 24 | E17: 12 | I17: 16 | J17: 12 | K17: 12 | L17: 12 | R17: 35 x 24 | S17: 12 | V17: 16 | W17: 12 | X17: 12 | Y17: 12 | AC17: 84 | AD17: 7'0" | AE17: 12 | AH17: 12 | AI17: 1 | AL17: 87 x 63 | AM17: 7'3" x 5'3" | AN17: 18 | AQ17: 12 | AR17: 1 | AU17: 173 x 120 | AV17: 14'5" x 10'0" | AW17: 24 | AZ17: 12 | BA17: 1 | BG17: 36 | BH17: 12 | BL17: 16 | BM17: 12 | BN17: 12 | BO17: 12 | BT17: 30 | BU17: 12 | BV17: 14 | BW17: 10 | CC17: 42 X 29 | CD17: 15 | CE17: 12 | CF17: 8 | CM17: 54 | CN17: 18 | CR17: 12 | CS17: 10 | CW17: 90 | CX17: 7'6" | CY17: 24 | DB17: 0.1 | DC17: 0.25 | DF17: 111 x 77 | DG17: 9'-3" x 6'-5" | DH17: 27 | DK17: 0.1 | DL17: 0.25
D18: 27 | E18: 12 | I18: 16 | J18: 12 | K18: 12 | L18: 12 | R18: 42 x 29 | S18: 12 | V18: 16 | W18: 10 | X18: 10 | Y18: 10 | AC18: 90 | AD18: 7'6" | AE18: 12 | AH18: 12 | AI18: 1 | AL18: 92 x 65 | AM18: 7'8" x 5'5" | AN18: 18 | AQ18: 12 | AR18: 1 | AU18: 179 x 122 | AV18: 14'11" x 10'2" | AW18: 24 | AZ18: 12 | BA18: 1 | BG18: 42 | BH18: 15 | BL18: 16 | BM18: 12 | BN18: 12 | BO18: 12 | BT18: 36 | BU18: 12 | BV18: 14 | BW18: 8 | CC18: 49 X 33 | CD18: 15 | CE18: 12 | CF18: 8 | CM18: 60 | CN18: 18 | CR18: 10 | CS18: 10 | CW18: 96 | CX18: 8'0" | CY18: 24 | DB18: 0.1 | DC18: 0.25 | DF18: 115 x 78 | DG18: 9'-7" x 6'-6" | DH18: 27 | DK18: 0.1 | DL18: 0.25
D19: 30 | E19: 12 | I19: 16 | J19: 12 | K19: 12 | L19: 12 | R19: 49 x 33 | S19: 12 | V19: 14 | W19: 8 | X19: 10 | Y19: 10 | AC19: 96 | AD19: 8'0" | AE19: 12 | AH19: 12 | AI19: 1 | AL19: 95 x 67 | AM19: 7'11" x 5'7" | AN19: 18 | AQ19: 12 | AR19: 1 | AU19: 184 x 124 | AV19: 15'4" x 10'4" | AW19: 24 | AZ19: 12 | BA19: 1 | BG19: 48 | BH19: 15 | BL19: 16 | BM19: 12 | BN19: 12 | BO19: 12 | BT19: 42 | BU19: 12 | BV19: 12 | BW19: 8 | CC19: 57 X 38 | CD19: 15 | CE19: 10 | CF19: 8 | CM19: 66 | CN19: 21 | CR19: 10 | CS19: 10 | CW19: 102 | CX19: 8'6" | CY19: 30 | DB19: 0.1 | DC19: 0.25 | DF19: 119 x 80 | DG19: 9"-11" X 6'-8" | DH19: 27 | DK19: 0.1 | DL19: 0.25
D20: 36 | E20: 12 | I20: 16 | J20: 10 | K20: 10 | L20: 10 | R20: 57 x 38 | S20: 12 | V20: 12 | W20: 8 | X20: 10 | Y20: 10 | AC20: 102 | AD20: 8'6" | AE20: 18 | AH20: 12 | AI20: 1 | AL20: 98 x 69 | AM20: 8'2" x 5'9" | AN20: 18 | AQ20: 12 | AR20: 1 | AU20: 187 x 126 | AV20: 15'7" x 10'6" | AW20: 24 | AZ20: 12 | BA20: 1 | BG20: 54 | BH20: 15 | BL20: 12 | BM20: 12 | BN20: 12 | BO20: 12 | BT20: 48 | BU20: 12 | BV20: 12 | BW20: 8 | CC20: 64 X 43 | CD20: 18 | CE20: 10 | CF20: 8 | CW20: 108 | CX20: 9'0" | CY20: 30 | DB20: 0.1 | DC20: 0.25 | DF20: 123 x 81 | DG20: 10'-3" x 6'-9" | DH20: 27 | DK20: 0.1 | DL20: 0.25
D21: 42 | E21: 12 | I21: 16 | J21: 8 | K21: 10 | L21: 10 | R21: 64 x 43 | S21: 12 | V21: 12 | W21: 8 | X21: 10 | Y21: 10 | AC21: 108 | AD21: 9'0" | AE21: 18 | AH21: 12 | AI21: 1 | AL21: 103 x 71 | AM21: 8'7" x 5'11" | AN21: 18 | AQ21: 12 | AR21: 1 | AU21: 190 x 128 | AV21: 15'10" x 10'8" | AW21: 24 | AZ21: 12 | BA21: 1 | BG21: 60 | BH21: 15 | BL21: 12 | BM21: 10 | BN21: 10 | BO21: 10 | BT21: 54 | BU21: 18 | BV21: 12 | BW21: 8 | CC21: 71 X 47 | CD21: 18 | CE21: 8 | CF21: 8 | CW21: 114 | CX21: 9'6" | CY21: 30 | DB21: 0.1 | DC21: 0.25 | DF21: 129 x 82 | DG21: 10'-9" x 6'-10" | DH21: 30 | DK21: 0.1 | DL21: 0.25
D22: 48 | E22: 12 | I22: 16 | J22: 8 | K22: 10 | L22: 10 | R22: 71 x 47 | S22: 12 | V22: 10 | W22: 8 | X22: 10 | Y22: 10 | AC22: 114 | AD22: 9'6" | AE22: 18 | AH22: 12 | AI22: 1 | AL22: 106 x 72 | AM22: 8'10" x 6'1" | AN22: 18 | AQ22: 12 | AR22: 1 | AU22: 195 x 130 | AV22: 16'3" x 10'10" | AW22: 36 | AZ22: 12 | BA22: 1 | BG22: 66 | BH22: 18 | BL22: 12 | BM22: 10 | BN22: 10 | BO22: 10 | BT22: 60 | BU22: 18 | BV22: 10 | BW22: 8 | CA22: 707.22 (3" x 1" Corrugations) | CC22: 53 X 41 | CD22: 15 | CE22: 14 | CF22: 10 | CW22: 120 | CX22: 10'0" | CY22: 30 | DB22: 0.1 | DC22: 0.25 | DF22: 133 x 84 | DG22: 11'-1" x 7'-0" | DH22: 30 | DK22: 0.1 | DL22: 0.25
D23: 54 | E23: 12 | I23: 12 | J23: 8 | K23: 10 | L23: 10 | R23: 77 x 52 | S23: 12 | V23: 8 | W23: 8 | X23: 10 | Y23: 10 | AC23: 120 | AD23: 10'0" | AE23: 18 | AH23: 12 | AI23: 1 | AL23: 112 x 75 | AM23: 9'4" x 6'3" | AN23: 18 | AQ23: 12 | AR23: 1 | AU23: 198 x 132 | AV23: 16'6" x 11'0" | AW23: 36 | AZ23: 12 | BA23: 1 | BG23: 72 | BH23: 18 | BL23: 12 | BM23: 10 | BN23: 10 | BO23: 10 | BT23: 66 | BU23: 18 | BV23: 8 | BW23: 8 | CC23: 60 X 46 | CD23: 15 | CE23: 12 | CF23: 10 | CW23: 126 | CX23: 10'6" | CY23: 30 | DB23: 0.1 | DC23: 0.25 | DF23: 137 x 85 | DG23: 11'-5" x 7'-1" | DH23: 30 | DK23: 0.1 | DL23: 0.25
D24: 60 | E24: 12 | I24: 12 | J24: 8 | K24: 10 | L24: 10 | R24: 83 x 57 | S24: 12 | V24: 8 | W24: 8 | X24: 10 | Y24: 10 | AC24: 126 | AD24: 10'6" | AE24: 18 | AH24: 12 | AI24: 1 | AL24: 114 x 77 | AM24: 9'6" x 6'5" | AN24: 18 | AQ24: 12 | AR24: 1 | AU24: 204 x 134 | AV24: 17'0" x 11'2" | AW24: 36 | AZ24: 12 | BA24: 1 | BG24: 78 | BH24: 18 | BL24: 12 | BM24: 10 | BN24: 10 | BO24: 10 | BT24: 72 | BU24: 18 | BV24: 8 | BW24: 8 | CC24: 66 X 51 | CD24: 15 | CE24: 12 | CF24: 8 | CW24: 132 | CX24: 11'0" | CY24: 30 | DB24: 0.1 | DC24: 0.25 | DF24: 141 x 86 | DG24: 11'-9" x 7'-2" | DH24: 33 | DK24: 0.1 | DL24: 0.25
D25: 66 | E25: 12 | I25: 10 | J25: 8 | K25: 10 | L25: 10 | P25: 707.02, 707.04, 707.07, 707.11 and 707.14 (5" x 1" Corrugations) | R25: 40 x 31 | S25: 15 | V25: 12 | W25: 10 | X25: 10 | Y25: 10 | AC25: 132 | AD25: 11'0" | AE25: 18 | AH25: 12 | AI25: 1 | AL25: 117 x 79 | AM25: 9'9" x 6'7" | AN25: 18 | AQ25: 12 | AR25: 1 | AU25: 206 x 136 | AV25: 17'2" x 11'4" | AW25: 36 | AZ25: 12 | BA25: 1 | BG25: 84 | BH25: 18 | BL25: 10 | BM25: 10 | BN25: 10 | BO25: 10 | BR25: 707.22 (3" x 1" Corrugations) | BT25: 36 | BU25: 12 | BV25: 16 | BW25: 10 | CC25: 73 X 55 | CD25: 18 | CE25: 12 | CF25: 8 | CW25: 138 | CX25: 11'6" | CY25: 30 | DB25: 0.1 | DC25: 0.25 | DF25: 147 x 87 | DG25: 12'-3" x 7'-3" | DH25: 33 | DK25: 0.1 | DL25: 0.25
D26: 72 | E26: 12 | I26: 10 | J26: 8 | K26: 10 | L26: 10 | R26: 46 x 36 | S26: 15 | V26: 12 | W26: 8 | X26: 10 | Y26: 10 | AC26: 138 | AD26: 11'6" | AE26: 18 | AH26: 12 | AI26: 1 | AL26: 123 x 81 | AM26: 10'3" x 6'9" | AN26: 18 | AQ26: 12 | AR26: 1 | AU26: 209 x 138 | AV26: 17'5" x 11'6" | AW26: 36 | AZ26: 12 | BA26: 1 | BG26: 90 | BH26: 18 | BL26: 10 | BM26: 10 | BN26: 10 | BO26: 10 | BT26: 42 | BU26: 12 | BV26: 16 | BW26: 10 | CC26: 81 X 59 | CD26: 21 | CE26: 12 | CF26: 8 | CW26: 144 | CX26: 12'0" | CY26: 36 | DB26: 0.1 | DC26: 0.25 | DF26: 151 x 89 | DG26: 12'-7" x 7'-5" | DH26: 33 | DK26: 0.1 | DL26: 0.25
D27: 78 | E27: 12 | I27: 8 | J27: 8 | K27: 10 | L27: 10 | R27: 53 x 41 | S27: 15 | V27: 12 | W27: 8 | X27: 10 | Y27: 10 | AC27: 144 | AD27: 12'0" | AE27: 18 | AH27: 12 | AI27: 1 | AL27: 128 x 83 | AM27: 10'8" x 6'11" | AN27: 18 | AQ27: 12 | AR27: 1 | AU27: 215 x 140 | AV27: 17'11" x 11'8" | AW27: 36 | AZ27: 12 | BA27: 1 | BG27: 96 | BH27: 18 | BL27: 10 | BM27: 10 | BN27: 10 | BO27: 10 | BT27: 48 | BU27: 12 | BV27: 16 | BW27: 10 | CC27: 87 X 63 | CD27: 21 | CE27: 12 | CF27: 8 | CW27: 150 | CX27: 12'6" | CY27: 36 | DB27: 0.1 | DC27: 0.25 | DF27: 155 x 90 | DG27: 12'-11" x 7'-6" | DH27: 33 | DK27: 0.1 | DL27: 0.25
D28: 84 | E28: 12 | I28: 8 | J28: 8 | K28: 10 | L28: 10 | R28: 60 x 46 | S28: 15 | V28: 12 | W28: 8 | X28: 10 | Y28: 10 | AC28: 150 | AD28: 12'6" | AE28: 24 | AH28: 12 | AI28: 1 | AL28: 131 x 85 | AM28: 10'11" x 7'1" | AN28: 18 | AQ28: 12 | AR28: 1 | AU28: 217 x 142 | AV28: 18'1" x 11'10" | AW28: 36 | AZ28: 12 | BA28: 1 | BG28: 102 | BH28: 18 | BL28: 10 | BM28: 10 | BN28: 10 | BO28: 10 | BT28: 54 | BU28: 18 | BV28: 14 | BW28: 10 | CC28: 95 X 67 | CD28: 24 | CE28: 12 | CF28: 8 | CW28: 156 | CX28: 13'0" | CY28: 36 | DB28: 0.1 | DC28: 0.25 | DF28: 157 x 98 | DG28: 13'-1" x 8'-2" | DH28: 33 | DK28: 0.1 | DL28: 0.25
B29: 707.02, 707.04, 707.07, 707.11 and 707.14 (5" x 1" Corrugations) | D29: 36 | E29: 12 | I29: 16 | J29: 10 | K29: 10 | L29: 10 | R29: 66 x 51 | S29: 15 | V29: 12 | W29: 8 | X29: 10 | Y29: 10 | AC29: 156 | AD29: 13'0" | AE29: 24 | AH29: 12 | AI29: 1 | AL29: 137 x 87 | AM29: 11'5" x 7'3" | AN29: 18 | AQ29: 12 | AR29: 1 | AU29: 223 x 144 | AV29: 18'7" x 12'0" | AW29: 36 | AZ29: 12 | BA29: 1 | BG29: 108 | BH29: 18 | BL29: 10 | BM29: 10 | BN29: 10 | BO29: 10 | BT29: 60 | BU29: 18 | BV29: 12 | BW29: 8 | CC29: 103 X 71 | CD29: 24 | CE29: 10 | CF29: 8 | CW29: 162 | CX29: 13'6" | CY29: 36 | DB29: 0.1 | DC29: 0.25 | DF29: 157 x 100 | DG29: 13'-1" x 8'-4" | DH29: 33 | DK29: 0.1 | DL29: 0.25
D30: 42 | E30: 12 | I30: 16 | J30: 8 | K30: 10 | L30: 10 | R30: 73 x 55 | S30: 18 | V30: 12 | W30: 8 | X30: 10 | Y30: 10 | AC30: 162 | AD30: 13'6" | AE30: 24 | AH30: 12 | AI30: 1 | AL30: 139 x 89 | AM30: 11'7" x 7'5" | AN30: 18 | AQ30: 12 | AR30: 1 | AU30: 225 x 146 | AV30: 18'9" x 12'2" | AW30: 36 | AZ30: 12 | BA30: 1 | BG30: 114 | BH30: 18 | BL30: 10 | BM30: 10 | BN30: 10 | BO30: 10 | BT30: 66 | BU30: 18 | BV30: 12 | BW30: 8 | CC30: 112 X 75 | CD30: 27 | CE30: 8 | CF30: 8 | CW30: 168 | CX30: 14'0" | CY30: 36 | DB30: 0.1 | DC30: 0.25 | DF30: 167 x 101 | DG30: 13'-11" x 8'-5" | DH30: 33 | DK30: 0.1 | DL30: 0.25
D31: 48 | E31: 12 | I31: 16 | J31: 8 | K31: 10 | L31: 10 | R31: 81 x 59 | S31: 18 | V31: 12 | W31: 8 | X31: 10 | Y31: 10 | AC31: 168 | AD31: 14'0" | AE31: 24 | AH31: 12 | AI31: 1 | AL31: 142 x 91 | AM31: 11'10" x 7'7" | AN31: 18 | AQ31: 12 | AR31: 1 | AU31: 231 x 148 | AV31: 19'3" x 12'4" | AW31: 36 | AZ31: 12 | BA31: 1 | BG31: 120 | BH31: 18 | BL31: 10 | BM31: 10 | BN31: 10 | BO31: 10 | BT31: 72 | BU31: 18 | BV31: 12 | BW31: 8 | CC31: 117 X 79 | CD31: 27 | CE31: 8 | CF31: 8 | CW31: 174 | CX31: 14'6" | CY31: 36 | DB31: 0.1 | DC31: 0.25 | DF31: 167 x 113 | DG31: 13'-11" x 9'-5" | DH31: 33 | DK31: 0.1 | DL31: 0.25
D32: 54 | E32: 12 | I32: 14 | J32: 8 | K32: 10 | L32: 10 | R32: 87 x 63 | S32: 18 | V32: 12 | W32: 8 | X32: 10 | Y32: 10 | AC32: 174 | AD32: 14'6" | AE32: 24 | AH32: 12 | AI32: 1 | AL32: 148 x 93 | AM32: 12'4" x 7'9" | AN32: 18 | AQ32: 12 | AR32: 1 | AU32: 234 x 150 | AV32: 19'6" x 12'6" | AW32: 36 | AZ32: 12 | BA32: 1 | BT32: 78 | BU32: 24 | BV32: 12 | BW32: 8 | CW32: 180 | CX32: 15'0" | CY32: 36 | DB32: 0.1 | DC32: 0.25 | DF32: 168 x 104 | DG32: 14'-0" x 8'-7" | DH32: 33 | DK32: 0.1 | DL32: 0.25
D33: 60 | E33: 12 | I33: 14 | J33: 8 | K33: 10 | L33: 10 | R33: 95 x 67 | S33: 18 | V33: 12 | W33: 8 | X33: 10 | Y33: 10 | AC33: 180 | AD33: 15'0" | AE33: 24 | AH33: 12 | AI33: 1 | AL33: 150 x 95 | AM33: 12'6" x 7'11" | AN33: 18 | AQ33: 12 | AR33: 1 | AU33: 236 x 152 | AV33: 19'8" x 12'8" | AW33: 36 | AZ33: 12 | BA33: 1 | BE33: 707.17 | BG33: 20 x 16 | BL33: 14 | BN33: 12 | BT33: 84 | BU33: 24 | BV33: 12 | BW33: 8 | CW33: 186 | CX33: 15'6" | CY33: 36 | DB33: 0.1 | DC33: 0.25 | DF33: 171 x 115 | DG33: 14'-3" x 9'-7" | DH33: 33 | DK33: 0.1 | DL33: 0.25
D34: 66 | E34: 12 | I34: 12 | J34: 8 | K34: 10 | L34: 10 | R34: 103 x 71 | S34: 18 | V34: 12 | W34: 8 | X34: 10 | Y34: 10 | AC34: 186 | AD34: 15'6" | AE34: 24 | AH34: 12 | AI34: 1 | AL34: 152 x 97 | AM34: 12'8" x 8'1" | AN34: 24 | AQ34: 12 | AR34: 1 | AU34: 239 x 154 | AV34: 19'11" x 12'10" | AW34: 36 | AZ34: 12 | BA34: 1 | BG34: 23 x 19 | BL34: 14 | BN34: 12 | BT34: 90 | BU34: 24 | BV34: 12 | BW34: 8 | CW34: 192 | CX34: 16'0" | CY34: 36 | DB34: 0.1 | DC34: 0.25 | DF34: 176 x 116 | DG34: 14'-8" x 9'-8" | DH34: 33 | DK34: 0.1 | DL34: 0.25
D35: 72 | E35: 12 | I35: 12 | J35: 8 | K35: 10 | L35: 10 | R35: 112 x 75 | S35: 21 | V35: 12 | W35: 8 | X35: 10 | Y35: 10 | AC35: 192 | AD35: 16'0" | AE35: 24 | AH35: 12 | AI35: 1 | AL35: 154 x 100 | AM35: 12'10" x 8'4" | AN35: 24 | AQ35: 12 | AR35: 1 | AU35: 245 x 156 | AV35: 20'5" x 13'0" | AW35: 36 | AZ35: 12 | BA35: 1 | BG35: 27 x 21 | BL35: 14 | BN35: 12 | BT35: 96 | BU35: 24 | BV35: 12 | BW35: 8 | CW35: 198 | CX35: 16'6" | CY35: 36 | DB35: 0.1 | DC35: 0.25 | DF35: 179 x 118 | DG35: 14'-11" x 9'-10" | DH35: 33 | DK35: 0.1 | DL35: 0.25
D36: 78 | E36: 12 | I36: 12 | J36: 8 | K36: 10 | L36: 10 | R36: 117 x 79 | S36: 21 | V36: 12 | W36: 8 | X36: 10 | Y36: 10 | AC36: 198 | AD36: 16'6" | AE36: 30 | AH36: 12 | AI36: 1 | AL36: 161 x 101 | AM36: 13'5" x 8'5" | AN36: 24 | AQ36: 12 | AR36: 1 | AU36: 247 x 158 | AV36: 20'7" x 13'2" | AW36: 36 | AZ36: 12 | BA36: 1 | BG36: 33 x 26 | BL36: 14 | BN36: 12 | BT36: 102 | BU36: 30 | BV36: 10 | BW36: 8 | CW36: 204 | CX36: 17'0" | CY36: 36 | DB36: 0.1 | DC36: 0.25 | DF36: 184 x 120 | DG36: 15'-4" x 10'-0" | DH36: 33 | DK36: 0.1 | DL36: 0.25
D37: 84 | E37: 12 | I37: 12 | J37: 8 | K37: 10 | L37: 10 | R37: 128 x 83 | S37: 24 | V37: 10 | W37: 8 | X37: 10 | Y37: 10 | AC37: 204 | AD37: 17'0" | AE37: 30 | AH37: 12 | AI37: 1 | AL37: 167 x 103 | AM37: 13'11" x 8'7" | AN37: 24 | AQ37: 12 | AR37: 1 | BG37: 40 x 31 | BL37: 14 | BN37: 12 | BT37: 108 | BU37: 30 | BV37: 10 | BW37: 8 | CW37: 210 | CX37: 17'6" | CY37: 36 | DB37: 0.1 | DC37: 0.25 | DF37: 187 x 122 | DG37: 15'-7" x 10'-2" | DH37: 33 | DK37: 0.1 | DL37: 0.25
D38: 90 | E38: 12 | I38: 12 | J38: 8 | K38: 10 | L38: 10 | R38: 137 x 87 | S38: 24 | V38: 10 | W38: 8 | X38: 10 | Y38: 10 | AC38: 210 | AD38: 17'6" | AE38: 30 | AH38: 12 | AI38: 1 | AL38: 168 x 105 | AM38: 14'1" x 8'9" | AN38: 24 | AQ38: 12 | AR38: 1 | BG38: 46 x 36 | BL38: 14 | BN38: 12 | BT38: 114 | BU38: 30 | BV38: 8 | BW38: 8 | CW38: 216 | CX38: 18'0" | CY38: 36 | DB38: 0.1 | DC38: 0.25 | DF38: 193 x 124 | DG38: 16'-1" x 10'-4" | DH38: 33 | DK38: 0.1 | DL38: 0.25
D39: 96 | E39: 12 | I39: 12 | J39: 8 | K39: 10 | L39: 10 | R39: 142 x 91 | S39: 24 | V39: 8 | W39: 8 | X39: 10 | Y39: 10 | AC39: 216 | AD39: 18'0" | AE39: 30 | AH39: 12 | AI39: 1 | AL39: 171 x 107 | AM39: 14'3" x 8'11" | AN39: 24 | AQ39: 12 | AR39: 1 | BG39: 53 x 41 | BL39: 12 | BN39: 12 | BT39: 120 | BU39: 30 | BV39: 8 | BW39: 8 | CW39: 222 | CX39: 18'6" | CY39: 36 | DB39: 0.1 | DC39: 0.25 | DF39: 196 x 126 | DG39: 16'-4" x 10'-6" | DH39: 33 | DK39: 0.1 | DL39: 0.25
D40: 102 | E40: 18 | I40: 12 | J40: 8 | K40: 10 | L40: 10 | AC40: 222 | AD40: 18'6" | AE40: 30 | AH40: 12 | AI40: 1 | AL40: 178 x 109 | AM40: 14'10" x 9'1" | AN40: 24 | AQ40: 12 | AR40: 1 | BG40: 60 x 46 | BL40: 12 | BN40: 10 | CW40: 228 | CX40: 19'0" | CY40: 36 | DB40: 0.1 | DC40: 0.25
D41: 108 | E41: 18 | I41: 12 | J41: 8 | K41: 10 | L41: 10 | AC41: 228 | AD41: 19'0" | AE41: 30 | AH41: 12 | AI41: 1 | AL41: 184 x 111 | AM41: 15'4" x 9'3" | AN41: 24 | AQ41: 12 | AR41: 1 | BG41: 66 x 51 | BL41: 12 | BN41: 10
D42: 114 | E42: 18 | I42: 12 | J42: 8 | K42: 10 | L42: 10 | AC42: 234 | AD42: 19'6" | AE42: 30 | AH42: 12 | AI42: 1 | AL42: 186 x 113 | AM42: 15'6" x 9'5" | AN42: 24 | AQ42: 12 | AR42: 1 | BG42: 73 x 55 | BL42: 12 | BN42: 10
D43: 120 | E43: 18 | I43: 12 | J43: 8 | K43: 10 | L43: 10 | AC43: 240 | AD43: 20'0" | AE43: 30 | AH43: 12 | AI43: 1 | AL43: 188 x 115 | AM43: 15'8" x 9'7" | AN43: 24 | AQ43: 12 | AR43: 1 | BG43: 81 x 59 | BL43: 10 | BN43: 10
AC44: 246 | AD44: 20'6" | AE44: 36 | AH44: 12 | AI44: 1 | AL44: 190 x 118 | AM44: 15'10" x 9'10" | AN44: 24 | AQ44: 12 | AR44: 1
AC45: 252 | AD45: 21'0" | AE45: 36 | AH45: 12 | AI45: 1 | AL45: 197 x 119 | AM45: 16'5" x 9'11" | AN45: 36 | AQ45: 12 | AR45: 1
AL46: 199 x 121 | AM46: 16'7" x 10'1" | AN46: 36 | AQ46: 12 | AR46: 1

Sheet Conduit Material Photos
